Workbook

Sheet 千曲川上流
A1: 第10-1表 市町村別・公益的機能別施業森林等区分別ゾーニング別・資源表
R2: （単位 面積：ha 蓄積：m3）
A3: 地域振興局 | B3: 市町村名 | C3: 区 分 | E3: 公益的機能別施業森林等区分別
E4: 水かん | G4: 山災/土壌 | I4: 快適環境 | K4: 保健 | M4: 文化 | O4: 独自 | Q4: 木材 | S4: 総数
E5: 面積 | F5: 蓄積 | G5: 面積 | H5: 蓄積 | I5: 面積 | J5: 蓄積 | K5: 面積 | L5: 蓄積 | M5: 面積 | N5: 蓄積 | O5: 面積 | P5: 蓄積 | Q5: 面積 | R5: 蓄積 | S5: 面積 | T5: 蓄積
A6: 佐久 | B6: 小諸市 | C6: 総 数 | E6: 669.53 | F6: 162923 | G6: 55.22 | H6: 13825 | I6: 0 | J6: 0 | K6: 0 | L6: 0 | M6: 0 | N6: 0 | O6: 0 | P6: 0 | Q6: 621 | R6: 155174 | S6: =SUM(S7,S10) -> 1345.75 | T6: =SUM(T7,T10) -> 331922
C7: 立木地 | D7: 総 数 | E7: 662.51 | F7: 162873 | G7: 54.28 | H7: 13825 | I7: 0 | J7: 0 | K7: 0 | L7: 0 | M7: 0 | N7: 0 | O7: 0 | P7: 0 | Q7: 614.17 | R7: 155124 | S7: =SUM(S8:S9) -> 1330.96 | T7: =SUM(T8:T9) -> 331822
D8: 人工林 | E8: 464.53 | F8: 127603 | G8: 53.23 | H8: 13482 | J8: 0 | L8: 0 | N8: 0 | P8: 0 | Q8: 453.97 | R8: 125561 | S8: =E8+G8+I8+K8+M8+O8+Q8 -> 971.73 | T8: 266646
D9: 天然林 | E9: 197.98 | F9: 35270 | G9: 1.05 | H9: 343 | J9: 0 | L9: 0 | N9: 0 | P9: 0 | Q9: 160.2 | R9: 29563 | S9: 359.23 | T9: 65176
C10: その他 | E10: 7.02 | F10: 50 | G10: 0.94 | H10: 0 | J10: 0 | L10: 0 | N10: 0 | P10: 0 | Q10: 6.83 | R10: 50 | S10: 14.79 | T10: 100
B11: 佐久市 | C11: 総 数 | E11: 12785.1 | F11: 2959078 | G11: 198.94 | H11: 51269 | I11: 0 | J11: 0 | K11: 0 | L11: 0 | M11: 0 | N11: 0 | O11: 0 | P11: 0 | Q11: 7012.99 | R11: 1721170 | S11: =SUM(S12,S15) -> 19997.03 | T11: =SUM(T12,T15) -> 4731517
C12: 立木地 | D12: 総 数 | E12: 12553.07 | F12: 2958773 | G12: 192.94 | H12: 51269 | I12: 0 | J12: 0 | K12: 0 | L12: 0 | M12: 0 | N12: 0 | O12: 0 | P12: 0 | Q12: 6889.52 | R12: 1721133 | S12: =SUM(S13:S14) -> 19635.53 | T12: =SUM(T13:T14) -> 4731175
D13: 人工林 | E13: 7761.77 | F13: 2337228 | G13: 145.37 | H13: 45540 | J13: 0 | L13: 0 | N13: 0 | P13: 0 | Q13: 4516.58 | R13: 1383433 | S13: =E13+G13+I13+K13+M13+O13+Q13 -> 12423.72 | T13: 3766201
D14: 天然林 | E14: 4791.3 | F14: 621545 | G14: 47.57 | H14: 5729 | J14: 0 | L14: 0 | N14: 0 | P14: 0 | Q14: 2372.94 | R14: 337700 | S14: 7211.81 | T14: 964974
C15: その他 | E15: 232.03 | F15: 305 | G15: 6 | H15: 0 | J15: 0 | L15: 0 | N15: 0 | P15: 0 | Q15: 123.47 | R15: 37 | S15: 361.5 | T15: 342
B16: 小海町 | C16: 総 数 | E16: 3363.17 | F16: 873759 | G16: 275 | H16: 66400 | I16: 0 | J16: 0 | K16: 0 | L16: 0 | M16: 0 | N16: 0 | O16: 0 | P16: 0 | Q16: 2274.38 | R16: 591151 | S16: =SUM(S17,S20) -> 5912.55 | T16: =SUM(T17,T20) -> 1531310
C17: 立木地 | D17: 総 数 | E17: 3291.39 | F17: 873708 | G17: 271.15 | H17: 66400 | I17: 0 | J17: 0 | K17: 0 | L17: 0 | M17: 0 | N17: 0 | O17: 0 | P17: 0 | Q17: 2255.05 | R17: 591151 | S17: =SUM(S18:S19) -> 5817.59 | T17: =SUM(T18:T19) -> 1531259
D18: 人工林 | E18: 2276.25 | F18: 744429 | G18: 153.28 | H18: 50900 | J18: 0 | L18: 0 | N18: 0 | P18: 0 | Q18: 1485.91 | R18: 496758 | S18: =E18+G18+I18+K18+M18+O18+Q18 -> 3915.44 | T18: 1292087
D19: 天然林 | E19: 1015.14 | F19: 129279 | G19: 117.87 | H19: 15500 | J19: 0 | L19: 0 | N19: 0 | P19: 0 | Q19: 769.14 | R19: 94393 | S19: 1902.15 | T19: 239172
C20: その他 | E20: 71.78 | F20: 51 | G20: 3.85 | H20: 0 | J20: 0 | L20: 0 | N20: 0 | P20: 0 | Q20: 19.33 | R20: 0 | S20: 94.96 | T20: 51
B21: 川上村 | C21: 総 数 | E21: 10293.67 | F21: 2607722 | G21: 355.44 | H21: 87877 | I21: 0 | J21: 0 | K21: 181.45 | L21: 40346 | M21: 0 | N21: 0 | O21: 0 | P21: 0 | Q21: 2485.28 | R21: 673949 | S21: =SUM(S22,S25) -> 13315.84 | T21: =SUM(T22,T25) -> 3409894
C22: 立木地 | D22: 総 数 | E22: 9863.55 | F22: 2602154 | G22: 336.87 | H22: 87877 | I22: 0 | J22: 0 | K22: 153.9 | L22: 40346 | M22: 0 | N22: 0 | O22: 0 | P22: 0 | Q22: 2444.45 | R22: 673949 | S22: =SUM(S23:S24) -> 12798.77 | T22: =SUM(T23:T24) -> 3404326
D23: 人工林 | E23: 6424.87 | F23: 2085246 | G23: 271.32 | H23: 79563 | J23: 0 | K23: 82.7 | L23: 21512 | N23: 0 | P23: 0 | Q23: 1846.65 | R23: 596563 | S23: =E23+G23+I23+K23+M23+O23+Q23 -> 8625.54 | T23: 2782884
D24: 天然林 | E24: 3438.68 | F24: 516908 | G24: 65.55 | H24: 8314 | J24: 0 | K24: 71.2 | L24: 18834 | N24: 0 | P24: 0 | Q24: 597.8 | R24: 77386 | S24: 4173.23 | T24: 621442
C25: その他 | E25: 430.12 | F25: 5568 | G25: 18.57 | H25: 0 | J25: 0 | K25: 27.55 | L25: 0 | N25: 0 | P25: 0 | Q25: 40.83 | R25: 0 | S25: 517.07 | T25: 5568
B26: 南牧村 | C26: 総 数 | E26: 4576.38 | F26: 1119528 | G26: 0 | H26: 0 | I26: 0 | J26: 0 | K26: 48.85 | L26: 3952 | M26: 0 | N26: 0 | O26: 0 | P26: 0 | Q26: 1538.5 | R26: 385086 | S26: =SUM(S27,S30) -> 6163.73 | T26: =SUM(T27,T30) -> 1508566
C27: 立木地 | D27: 総 数 | E27: 4459.35 | F27: 1119528 | G27: 0 | H27: 0 | I27: 0 | J27: 0 | K27: 38 | L27: 3952 | M27: 0 | N27: 0 | O27: 0 | P27: 0 | Q27: 1500.44 | R27: 385086 | S27: =SUM(S28:S29) -> 5997.79 | T27: =SUM(T28:T29) -> 1508566
D28: 人工林 | E28: 3098.17 | F28: 964460 | H28: 0 | J28: 0 | L28: 0 | N28: 0 | P28: 0 | Q28: 1156.6 | R28: 346771 | S28: =E28+G28+I28+K28+M28+O28+Q28 -> 4254.77 | T28: 1311231
D29: 天然林 | E29: 1361.18 | F29: 155068 | H29: 0 | J29: 0 | K29: 38 | L29: 3952 | N29: 0 | P29: 0 | Q29: 343.84 | R29: 38315 | S29: 1743.02 | T29: 197335
C30: その他 | E30: 117.03 | F30: 0 | H30: 0 | J30: 0 | K30: 10.85 | L30: 0 | N30: 0 | P30: 0 | Q30: 38.06 | R30: 0 | S30: 165.94 | T30: 0
B31: 南相木村 | C31: 総 数 | E31: 784 | F31: 195025 | G31: 774.87 | H31: 149645 | I31: 0 | J31: 0 | K31: 24.71 | L31: 5000 | M31: 0 | N31: 0 | O31: 0 | P31: 0 | Q31: 780.56 | R31: 185451 | S31: =SUM(S32,S35) -> 2364.14 | T31: =SUM(T32,T35) -> 535121
C32: 立木地 | D32: 総 数 | E32: 750.19 | F32: 193596 | G32: 715.93 | H32: 147315 | I32: 0 | J32: 0 | K32: 24.27 | L32: 5000 | M32: 0 | N32: 0 | O32: 0 | P32: 0 | Q32: 732.32 | R32: 184022 | S32: =SUM(S33:S34) -> 2222.71 | T32: =SUM(T33:T34) -> 529933
D33: 人工林 | E33: 520.27 | F33: 166697 | G33: 388.47 | H33: 111693 | J33: 0 | K33: 18.75 | L33: 4572 | N33: 0 | P33: 0 | Q33: 520.99 | R33: 158760 | S33: =E33+G33+I33+K33+M33+O33+Q33 -> 1448.48 | T33: 441722
D34: 天然林 | E34: 229.92 | F34: 26899 | G34: 327.46 | H34: 35622 | J34: 0 | K34: 5.52 | L34: 428 | N34: 0 | P34: 0 | Q34: 211.33 | R34: 25262 | S34: 774.23 | T34: 88211
C35: その他 | E35: 33.81 | F35: 1429 | G35: 58.94 | H35: 2330 | J35: 0 | K35: 0.44 | L35: 0 | N35: 0 | P35: 0 | Q35: 48.24 | R35: 1429 | S35: 141.43 | T35: 5188
B36: 北相木村 | C36: 総 数 | E36: 2153.02 | F36: 540471 | G36: 0 | H36: 0 | I36: 0 | J36: 0 | K36: 0 | L36: 0 | M36: 0 | N36: 0 | O36: 0 | P36: 0 | Q36: 2160.12 | R36: 542213 | S36: =SUM(S37,S40) -> 4313.14 | T36: =SUM(T37,T40) -> 1082684
C37: 立木地 | D37: 総 数 | E37: 2052.9 | F37: 538511 | G37: 0 | H37: 0 | I37: 0 | J37: 0 | K37: 0 | L37: 0 | M37: 0 | N37: 0 | O37: 0 | P37: 0 | Q37: 2060 | R37: 540253 | S37: =SUM(S38:S39) -> 4112.9 | T37: =SUM(T38:T39) -> 1078764
D38: 人工林 | E38: 1376.32 | F38: 446676 | H38: 0 | J38: 0 | L38: 0 | N38: 0 | P38: 0 | Q38: 1381.67 | R38: 448063 | S38: =E38+G38+I38+K38+M38+O38+Q38 -> 2757.99 | T38: 894739
D39: 天然林 | E39: 676.58 | F39: 91835 | H39: 0 | J39: 0 | L39: 0 | N39: 0 | P39: 0 | Q39: 678.33 | R39: 92190 | S39: 1354.91 | T39: 184025
C40: その他 | E40: 100.12 | F40: 1960 | H40: 0 | J40: 0 | L40: 0 | N40: 0 | P40: 0 | Q40: 100.12 | R40: 1960 | S40: 200.24 | T40: 3920
B41: 佐久穂町 | C41: 総 数 | E41: 7453.35 | F41: 1831373 | G41: 646.72 | H41: 147587 | I41: 0 | J41: 0 | K41: 238.1 | L41: 32305 | M41: 0 | N41: 0 | O41: 0 | P41: 0 | Q41: 2622.36 | R41: 658401 | S41: =SUM(S42,S45) -> 10960.53 | T41: =SUM(T42,T45) -> 2669666
C42: 立木地 | D42: 総 数 | E42: 7339.32 | F42: 1831297 | G42: 627.55 | H42: 147511 | I42: 0 | J42: 0 | K42: 237.81 | L42: 32305 | M42: 0 | N42: 0 | O42: 0 | P42: 0 | Q42: 2555.64 | R42: 658401 | S42: =SUM(S43:S44) -> 10760.32 | T42: =SUM(T43:T44) -> 2669514
D43: 人工林 | E43: 4119.37 | F43: 1339649 | G43: 397.32 | H43: 118545 | J43: 0 | K43: 23.36 | L43: 7529 | N43: 0 | P43: 0 | Q43: 1759.21 | R43: 567821 | S43: =E43+G43+I43+K43+M43+O43+Q43 -> 6299.26 | T43: 2033544
D44: 天然林 | E44: 3219.95 | F44: 491648 | G44: 230.23 | H44: 28966 | J44: 0 | K44: 214.45 | L44: 24776 | N44: 0 | P44: 0 | Q44: 796.43 | R44: 90580 | S44: 4461.06 | T44: 635970
C45: その他 | E45: 114.03 | F45: 76 | G45: 19.17 | H45: 76 | J45: 0 | K45: 0.29 | L45: 0 | N45: 0 | P45: 0 | Q45: 66.72 | R45: 0 | S45: 200.21 | T45: 152
B46: 軽井沢町 | C46: 総 数 | E46: 2406.29 | F46: 443841 | G46: 6.25 | H46: 1126 | I46: 0 | J46: 0 | K46: 353.2 | L46: 73735 | M46: 0 | N46: 0 | O46: 0 | P46: 0 | Q46: 1024.91 | R46: 188094 | S46: =SUM(S47,S50) -> 3790.65 | T46: =SUM(T47,T50) -> 706796
C47: 立木地 | D47: 総 数 | E47: 2392.09 | F47: 443841 | G47: 4.69 | H47: 1126 | I47: 0 | J47: 0 | K47: 352.6 | L47: 73735 | M47: 0 | N47: 0 | O47: 0 | P47: 0 | Q47: 1013.01 | R47: 188094 | S47: =SUM(S48:S49) -> 3762.39 | T47: =SUM(T48:T49) -> 706796
D48: 人工林 | E48: 844.8 | F48: 259498 | G48: 4.69 | H48: 1126 | J48: 0 | K48: 166.81 | L48: 51774 | N48: 0 | P48: 0 | Q48: 418.14 | R48: 118265 | S48: =E48+G48+I48+K48+M48+O48+Q48 -> 1434.44 | T48: 430663
D49: 天然林 | E49: 1547.29 | F49: 184343 | H49: 0 | J49: 0 | K49: 185.79 | L49: 21961 | N49: 0 | P49: 0 | Q49: 594.87 | R49: 69829 | S49: 2327.95 | T49: 276133
C50: その他 | E50: 14.2 | F50: 0 | G50: 1.56 | H50: 0 | J50: 0 | K50: 0.6 | L50: 0 | N50: 0 | P50: 0 | Q50: 11.9 | R50: 0 | S50: 28.26 | T50: 0
B51: 御代田町 | C51: 総 数 | E51: 1079.74 | F51: 227292 | G51: 215.63 | H51: 47066 | I51: 0 | J51: 0 | K51: 0 | L51: 0 | M51: 0 | N51: 0 | O51: 0 | P51: 0 | Q51: 398.07 | R51: 86100 | S51: =SUM(S52,S55) -> 1693.44 | T51: =SUM(T52,T55) -> 360458
C52: 立木地 | D52: 総 数 | E52: 1059.22 | F52: 227292 | G52: 211.49 | H52: 47066 | I52: 0 | J52: 0 | K52: 0 | L52: 0 | M52: 0 | N52: 0 | O52: 0 | P52: 0 | Q52: 388.11 | R52: 86100 | S52: =SUM(S53:S54) -> 1658.82 | T52: =SUM(T53:T54) -> 360458
D53: 人工林 | E53: 569.47 | F53: 171486 | G53: 179.71 | H53: 43770 | J53: 0 | L53: 0 | N53: 0 | P53: 0 | Q53: 318.27 | R53: 78515 | S53: =E53+G53+I53+K53+M53+O53+Q53 -> 1067.45 | T53: 293771
D54: 天然林 | E54: 489.75 | F54: 55806 | G54: 31.78 | H54: 3296 | J54: 0 | L54: 0 | N54: 0 | P54: 0 | Q54: 69.84 | R54: 7585 | S54: 591.37 | T54: 66687
C55: その他 | E55: 20.52 | F55: 0 | G55: 4.14 | H55: 0 | J55: 0 | L55: 0 | N55: 0 | P55: 0 | Q55: 9.96 | R55: 0 | S55: 34.62 | T55: 0
B56: 立科町 | C56: 総 数 | E56: 2038.62 | F56: 398676 | G56: 67.05 | H56: 15597 | I56: 0 | J56: 0 | K56: 0 | L56: 0 | M56: 0 | N56: 0 | O56: 0 | P56: 0 | Q56: 2038.62 | R56: 398676 | S56: =SUM(S57,S60) -> 4144.29 | T56: =SUM(T57,T60) -> 812949
C57: 立木地 | D57: 総 数 | E57: 2008.19 | F57: 398676 | G57: 66.84 | H57: 15597 | I57: 0 | J57: 0 | K57: 0 | L57: 0 | M57: 0 | N57: 0 | O57: 0 | P57: 0 | Q57: 2008.19 | R57: 398676 | S57: =SUM(S58:S59) -> 4083.22 | T57: =SUM(T58:T59) -> 812949
D58: 人工林 | E58: 982.24 | F58: 261165 | G58: 40.24 | H58: 11813 | J58: 0 | L58: 0 | N58: 0 | P58: 0 | Q58: 982.24 | R58: 261165 | S58: =E58+G58+I58+K58+M58+O58+Q58 -> 2004.72 | T58: 534143
D59: 天然林 | E59: 1025.95 | F59: 137511 | G59: 26.6 | H59: 3784 | J59: 0 | L59: 0 | N59: 0 | P59: 0 | Q59: 1025.95 | R59: 137511 | S59: 2078.5 | T59: 278806
C60: その他 | E60: 30.43 | F60: 0 | G60: 0.21 | H60: 0 | J60: 0 | L60: 0 | N60: 0 | P60: 0 | Q60: 30.43 | R60: 0 | S60: 61.07 | T60: 0
A61: 佐久 | B61: 佐久計 | C61: 総 数 | E61: 47602.87 | F61: 11359688 | G61: 2595.12 | H61: 580392 | I61: 0 | J61: 0 | K61: 846.31 | L61: 155338 | M61: 0 | N61: 0 | O61: 0 | P61: 0 | Q61: 22956.79 | R61: 5585465 | S61: =SUM(S62,S65) -> 74001.09 | T61: =SUM(T62,T65) -> 17680883
C62: 立木地 | D62: 総 数 | E62: 46431.78 | F62: 11350249 | G62: 2481.74 | H62: 577986 | I62: 0 | J62: 0 | K62: 806.58 | L62: 155338 | M62: 0 | N62: 0 | O62: 0 | P62: 0 | Q62: 22460.9 | R62: 5581989 | S62: =SUM(S63:S64) -> 72181 | T62: =SUM(T63:T64) -> 17665562
D63: 人工林 | E63: 28438.06 | F63: 8904137 | G63: 1633.63 | H63: 476432 | I63: 0 | J63: 0 | K63: 291.62 | L63: 85387 | M63: 0 | N63: 0 | O63: 0 | P63: 0 | Q63: 14840.23 | R63: 4581675 | S63: =E63+G63+I63+K63+M63+O63+Q63 -> 45203.54 | T63: 14047631
D64: 天然林 | E64: 17993.72 | F64: 2446112 | G64: 848.11 | H64: 101554 | I64: 0 | J64: 0 | K64: 514.96 | L64: 69951 | M64: 0 | N64: 0 | O64: 0 | P64: 0 | Q64: 7620.67 | R64: 1000314 | S64: 26977.46 | T64: 3617931
C65: その他 | E65: 1171.09 | F65: 9439 | G65: 113.38 | H65: 2406 | I65: 0 | J65: 0 | K65: 39.73 | L65: 0 | M65: 0 | N65: 0 | O65: 0 | P65: 0 | Q65: 495.89 | R65: 3476 | S65: 1820.09 | T65: 15321
A66: 上田 | B66: 上田市 | C66: 総 数 | E66: 22784.63 | F66: 5161052 | G66: 7341.07 | H66: 1610881 | I66: 0 | J66: 0 | K66: 352.6 | L66: 88658 | M66: 0 | N66: 0 | O66: 0 | P66: 0 | Q66: 27245.02 | R66: 6016182 | S66: =SUM(S67,S70) -> 57723.32 | T66: =SUM(T67,T70) -> 12876773
C67: 立木地 | D67: 総 数 | E67: 21912.72 | F67: 5123394 | G67: 6993.94 | H67: 1596985 | I67: 0 | J67: 0 | K67: 342.16 | L67: 88658 | M67: 0 | N67: 0 | O67: 0 | P67: 0 | Q67: 26292.45 | R67: 5978501 | S67: =SUM(S68:S69) -> 55541.27 | T67: =SUM(T68:T69) -> 12787538
D68: 人工林 | E68: 12037.31 | F68: 3758800 | G68: 3636.66 | H68: 1103235 | J68: 0 | K68: 153.91 | L68: 44059 | N68: 0 | P68: 0 | Q68: 13666.2 | R68: 4201362 | S68: =E68+G68+I68+K68+M68+O68+Q68 -> 29494.08 | T68: 9107456
D69: 天然林 | E69: 9875.41 | F69: 1364594 | G69: 3357.28 | H69: 493750 | J69: 0 | K69: 188.25 | L69: 44599 | N69: 0 | P69: 0 | Q69: 12626.25 | R69: 1777139 | S69: 26047.19 | T69: 3680082
C70: その他 | E70: 871.91 | F70: 37658 | G70: 347.13 | H70: 13896 | J70: 0 | K70: 10.44 | L70: 0 | N70: 0 | P70: 0 | Q70: 952.57 | R70: 37681 | S70: 2182.05 | T70: 89235
B71: 東御市 | C71: 総 数 | E71: 572.23 | F71: 124205 | G71: 619.65 | H71: 121007 | I71: 0 | J71: 0 | K71: 11.17 | L71: 2729 | M71: 0 | N71: 0 | O71: 34.34 | P71: 6216 | Q71: 1588.08 | R71: 330699 | S71: =SUM(S72,S75) -> 2825.47 | T71: =SUM(T72,T75) -> 584856
C72: 立木地 | D72: 総 数 | E72: 562.32 | F72: 124205 | G72: 610.51 | H72: 120278 | I72: 0 | J72: 0 | K72: 11.09 | L72: 2729 | M72: 0 | N72: 0 | O72: 34.11 | P72: 6216 | Q72: 1565.21 | R72: 330699 | S72: =SUM(S73:S74) -> 2783.24 | T72: =SUM(T73:T74) -> 584127
D73: 人工林 | E73: 440.68 | F73: 111543 | G73: 323 | H73: 82586 | J73: 0 | K73: 3.75 | L73: 1100 | N73: 0 | O73: 6.7 | P73: 2009 | Q73: 962.68 | R73: 254476 | S73: =E73+G73+I73+K73+M73+O73+Q73 -> 1736.81 | T73: 451714
D74: 天然林 | E74: 121.64 | F74: 12662 | G74: 287.51 | H74: 37692 | J74: 0 | K74: 7.34 | L74: 1629 | N74: 0 | O74: 27.41 | P74: 4207 | Q74: 602.53 | R74: 76223 | S74: 1046.43 | T74: 132413
C75: その他 | E75: 9.91 | F75: 0 | G75: 9.14 | H75: 729 | J75: 0 | K75: 0.08 | L75: 0 | N75: 0 | O75: 0.23 | P75: 0 | Q75: 22.87 | R75: 0 | S75: 42.23 | T75: 729
B76: 青木村 | C76: 総 数 | E76: 3263.32 | F76: 841011 | G76: 1071.8 | H76: 265961 | I76: 52.57 | J76: 10361 | K76: 33.66 | L76: 7046 | M76: 0 | N76: 0 | O76: 0 | P76: 0 | Q76: 3604.19 | R76: 911915 | S76: =SUM(S77,S80) -> 8025.54 | T76: =SUM(T77,T80) -> 2036294
C77: 立木地 | D77: 総 数 | E77: 3209.62 | F77: 841011 | G77: 1055.14 | H77: 265961 | I77: 52.57 | J77: 10361 | K77: 33.36 | L77: 7046 | M77: 0 | N77: 0 | O77: 0 | P77: 0 | Q77: 3542.54 | R77: 911915 | S77: =SUM(S78:S79) -> 7893.23 | T77: =SUM(T78:T79) -> 2036294
D78: 人工林 | E78: 2073.26 | F78: 660174 | G78: 677.74 | H78: 202877 | I78: 25.78 | J78: 7410 | K78: 11.79 | L78: 3654 | N78: 0 | P78: 0 | Q78: 2253.65 | R78: 705848 | S78: =E78+G78+I78+K78+M78+O78+Q78 -> 5042.22 | T78: 1579963
D79: 天然林 | E79: 1136.36 | F79: 180837 | G79: 377.4 | H79: 63084 | I79: 26.79 | J79: 2951 | K79: 21.57 | L79: 3392 | N79: 0 | P79: 0 | Q79: 1288.89 | R79: 206067 | S79: 2851.01 | T79: 456331
C80: その他 | E80: 53.7 | F80: 0 | G80: 16.66 | H80: 0 | J80: 0 | K80: 0.3 | L80: 0 | N80: 0 | P80: 0 | Q80: 61.65 | R80: 0 | S80: 132.31 | T80: 0
B81: 長和町 | C81: 総 数 | E81: 2308.39 | F81: 541166 | G81: 1211.45 | H81: 299025 | I81: 0 | J81: 0 | K81: 304.32 | L81: 70372 | M81: 0 | N81: 0 | O81: 0 | P81: 0 | Q81: 7533.82 | R81: 1831347 | S81: =SUM(S82,S85) -> 11357.98 | T81: =SUM(T82,T85) -> 2741910
C82: 立木地 | D82: 総 数 | E82: 2232.67 | F82: 541166 | G82: 1190.77 | H82: 299025 | I82: 0 | J82: 0 | K82: 289.39 | L82: 70372 | M82: 0 | N82: 0 | O82: 0 | P82: 0 | Q82: 7343.07 | R82: 1831347 | S82: =SUM(S83:S84) -> 11055.9 | T82: =SUM(T83:T84) -> 2741910
D83: 人工林 | E83: 1474.73 | F83: 442093 | G83: 749.27 | H83: 229454 | J83: 0 | K83: 206.14 | L83: 61218 | N83: 0 | P83: 0 | Q83: 4719.48 | R83: 1460177 | S83: =E83+G83+I83+K83+M83+O83+Q83 -> 7149.62 | T83: 2192942
D84: 天然林 | E84: 757.94 | F84: 99073 | G84: 441.5 | H84: 69571 | J84: 0 | K84: 83.25 | L84: 9154 | N84: 0 | P84: 0 | Q84: 2623.59 | R84: 371170 | S84: 3906.28 | T84: 548968
C85: その他 | E85: 75.72 | F85: 0 | G85: 20.68 | H85: 0 | J85: 0 | K85: 14.93 | L85: 0 | N85: 0 | P85: 0 | Q85: 190.75 | R85: 0 | S85: 302.08 | T85: 0
B86: 上田計 | C86: 総 数 | E86: 28928.57 | F86: 6667434 | G86: 10243.97 | H86: 2296874 | I86: 52.57 | J86: 10361 | K86: 701.75 | L86: 168805 | M86: 0 | N86: 0 | O86: 34.34 | P86: 6216 | Q86: 39971.11 | R86: 9090143 | S86: =SUM(S87,S90) -> 79932.31 | T86: =SUM(T87,T90) -> 18239833
C87: 立木地 | D87: 総 数 | E87: 27917.33 | F87: 6629776 | G87: 9850.36 | H87: 2282249 | I87: 52.57 | J87: 10361 | K87: 676 | L87: 168805 | M87: 0 | N87: 0 | O87: 34.11 | P87: 6216 | Q87: 38743.27 | R87: 9052462 | S87: =SUM(S88:S89) -> 77273.64 | T87: =SUM(T88:T89) -> 18149869
D88: 人工林 | E88: 16025.98 | F88: 4972610 | G88: 5386.67 | H88: 1618152 | I88: 25.78 | J88: 7410 | K88: 375.59 | L88: 110031 | M88: 0 | N88: 0 | O88: 6.7 | P88: 2009 | Q88: 21602.01 | R88: 6621863 | S88: =E88+G88+I88+K88+M88+O88+Q88 -> 43422.73 | T88: 13332075
D89: 天然林 | E89: 11891.35 | F89: 1657166 | G89: 4463.69 | H89: 664097 | I89: 26.79 | J89: 2951 | K89: 300.41 | L89: 58774 | M89: 0 | N89: 0 | O89: 27.41 | P89: 4207 | Q89: 17141.26 | R89: 2430599 | S89: 33850.91 | T89: 4817794
C90: その他 | E90: 1011.24 | F90: 37658 | G90: 393.61 | H90: 14625 | I90: 0 | J90: 0 | K90: 25.75 | L90: 0 | M90: 0 | N90: 0 | O90: 0.23 | P90: 0 | Q90: 1227.84 | R90: 37681 | S90: 2658.67 | T90: 89964
A91: 計画区計 | C91: 総 数 | E91: 76531.44 | F91: 18027122 | G91: 12839.09 | H91: 2877266 | I91: 52.57 | J91: 10361 | K91: 1548.06 | L91: 324143 | M91: 0 | N91: 0 | O91: 34.34 | P91: 6216 | Q91: 62927.9 | R91: 14675608 | S91: =SUM(S92,S95) -> 153933.4 | T91: =SUM(T92,T95) -> 35920716
C92: 立木地 | D92: 総 数 | E92: 74349.11 | F92: 17980025 | G92: 12332.1 | H92: 2860235 | I92: 52.57 | J92: 10361 | K92: 1482.58 | L92: 324143 | M92: 0 | N92: 0 | O92: 34.11 | P92: 6216 | Q92: 61204.17 | R92: 14634451 | S92: =SUM(S93:S94) -> 149454.64 | T92: =SUM(T93:T94) -> 35815431
D93: 人工林 | E93: 44464.04 | F93: 13876747 | G93: 7020.3 | H93: 2094584 | I93: 25.78 | J93: 7410 | K93: 667.21 | L93: 195418 | M93: 0 | N93: 0 | O93: 6.7 | P93: 2009 | Q93: 36442.24 | R93: 11203538 | S93: =E93+G93+I93+K93+M93+O93+Q93 -> 88626.27 | T93: 27379706
D94: 天然林 | E94: 29885.07 | F94: 4103278 | G94: 5311.8 | H94: 765651 | I94: 26.79 | J94: 2951 | K94: 815.37 | L94: 128725 | M94: 0 | N94: 0 | O94: 27.41 | P94: 4207 | Q94: 24761.93 | R94: 3430913 | S94: 60828.37 | T94: 8435725
C95: その他 | E95: 2182.33 | F95: 47097 | G95: 506.99 | H95: 17031 | I95: 0 | J95: 0 | K95: 65.48 | L95: 0 | M95: 0 | N95: 0 | O95: 0.23 | P95: 0 | Q95: 1723.73 | R95: 41157 | S95: 4478.76 | T95: 105285

Sheet 伊那谷
A1: 第10-1表 市町村別・公益的機能別施業森林等区分別ゾーニング別・資源表
R2: （単位 面積：ha 蓄積：m3）
A3: 地域振興局 | B3: 市町村名 | C3: 区 分 | E3: 公益的機能別施業森林等区分別
E4: 水かん | G4: 山災/土壌 | I4: 快適環境 | K4: 保健 | M4: 文化 | O4: 独自 | Q4: 木材 | S4: 総数
E5: 面積 | F5: 蓄積 | G5: 面積 | H5: 蓄積 | I5: 面積 | J5: 蓄積 | K5: 面積 | L5: 蓄積 | M5: 面積 | N5: 蓄積 | O5: 面積 | P5: 蓄積 | Q5: 面積 | R5: 蓄積 | S5: 面積 | T5: 蓄積
A6: 諏訪 | B6: 岡谷市 | C6: 総 数 | E6: 1409.2 | F6: 313785 | G6: 5157.76 | H6: 1188989 | I6: 0 | J6: 0 | K6: 220.95 | L6: 18921 | M6: 0 | N6: 0 | O6: 0 | P6: 0 | Q6: 5093.91 | R6: 1185718 | S6: =SUM(S7,S10) -> 11881.82 | T6: =SUM(T7,T10) -> 2707413
C7: 立木地 | D7: 総 数 | E7: 1399.82 | F7: 313785 | G7: 5028.82 | H7: 1188989 | I7: 0 | J7: 0 | K7: 136.93 | L7: 18921 | M7: 0 | N7: 0 | O7: 0 | P7: 0 | Q7: 5014.37 | R7: 1185718 | S7: =SUM(S8:S9) -> 11579.94 | T7: =SUM(T8:T9) -> 2707413
D8: 人工林 | E8: 1218.72 | F8: 283103 | G8: 3568.13 | H8: 901226 | J8: 0 | K8: 54.02 | L8: 10677 | N8: 0 | P8: 0 | Q8: 3553.06 | R8: 897540 | S8: =E8+G8+I8+K8+M8+O8+Q8 -> 8393.93 | T8: 2092546
D9: 天然林 | E9: 181.1 | F9: 30682 | G9: 1460.69 | H9: 287763 | J9: 0 | K9: 82.91 | L9: 8244 | N9: 0 | P9: 0 | Q9: 1461.31 | R9: 288178 | S9: 3186.01 | T9: 614867
C10: その他 | E10: 9.38 | F10: 0 | G10: 128.94 | H10: 0 | J10: 0 | K10: 84.02 | L10: 0 | N10: 0 | P10: 0 | Q10: 79.54 | R10: 0 | S10: 301.88 | T10: 0
B11: 諏訪市 | C11: 総 数 | E11: 5558.18 | F11: 1223467 | G11: 5558.18 | H11: 1223467 | I11: 0 | J11: 0 | K11: 1234.54 | L11: 128673 | M11: 7.57 | N11: 810 | O11: 0 | P11: 0 | Q11: 454.99 | R11: 123308 | S11: =SUM(S12,S15) -> 12813.46 | T11: =SUM(T12,T15) -> 2699725
C12: 立木地 | D12: 総 数 | E12: 5332.72 | F12: 1223467 | G12: 5332.72 | H12: 1223467 | I12: 0 | J12: 0 | K12: 585.98 | L12: 128673 | M12: 7.57 | N12: 810 | O12: 0 | P12: 0 | Q12: 446.38 | R12: 123308 | S12: =SUM(S13:S14) -> 11705.37 | T12: =SUM(T13:T14) -> 2699725
D13: 人工林 | E13: 3310.56 | F13: 890838 | G13: 3310.56 | H13: 890838 | J13: 0 | K13: 469.54 | L13: 118122 | N13: 0 | P13: 0 | Q13: 329.82 | R13: 98772 | S13: =E13+G13+I13+K13+M13+O13+Q13 -> 7420.48 | T13: 1998570
D14: 天然林 | E14: 2022.16 | F14: 332629 | G14: 2022.16 | H14: 332629 | J14: 0 | K14: 116.44 | L14: 10551 | M14: 7.57 | N14: 810 | P14: 0 | Q14: 116.56 | R14: 24536 | S14: 4284.89 | T14: 701155
C15: その他 | E15: 225.46 | F15: 0 | G15: 225.46 | H15: 0 | J15: 0 | K15: 648.56 | L15: 0 | N15: 0 | P15: 0 | Q15: 8.61 | R15: 0 | S15: 1108.09 | T15: 0
B16: 茅野市 | C16: 総 数 | E16: 2835.23 | F16: 454561 | G16: 1519.1 | H16: 325407 | I16: 5189.74 | J16: 1011561 | K16: 646.07 | L16: 150675 | M16: 84.83 | N16: 20562 | O16: 0 | P16: 0 | Q16: 5532.37 | R16: 1001860 | S16: =SUM(S17,S20) -> 15807.34 | T16: =SUM(T17,T20) -> 2964626
C17: 立木地 | D17: 総 数 | E17: 2731.43 | F17: 454561 | G17: 1487.93 | H17: 325407 | I17: 4913.86 | J17: 1011561 | K17: 641.46 | L17: 150675 | M17: 84.24 | N17: 20562 | O17: 0 | P17: 0 | Q17: 5230.08 | R17: 1001860 | S17: =SUM(S18:S19) -> 15089 | T17: =SUM(T18:T19) -> 2964626
D18: 人工林 | E18: 871.2 | F18: 199696 | G18: 747.21 | H18: 209519 | I18: 2456.33 | J18: 671592 | K18: 359.15 | L18: 101094 | M18: 29.94 | N18: 8302 | P18: 0 | Q18: 2458.08 | R18: 647475 | S18: =E18+G18+I18+K18+M18+O18+Q18 -> 6921.91 | T18: 1837678
D19: 天然林 | E19: 1860.23 | F19: 254865 | G19: 740.72 | H19: 115888 | I19: 2457.53 | J19: 339969 | K19: 282.31 | L19: 49581 | M19: 54.3 | N19: 12260 | P19: 0 | Q19: 2772 | R19: 354385 | S19: 8167.09 | T19: 1126948
C20: その他 | E20: 103.8 | F20: 0 | G20: 31.17 | H20: 0 | I20: 275.88 | J20: 0 | K20: 4.61 | L20: 0 | M20: 0.59 | N20: 0 | P20: 0 | Q20: 302.29 | R20: 0 | S20: 718.34 | T20: 0
B21: 下諏訪町 | C21: 総 数 | E21: 3195.01 | F21: 641596 | G21: 478.03 | H21: 110400 | I21: 330.52 | J21: 81014 | K21: 47.15 | L21: 11392 | M21: 0 | N21: 0 | O21: 0 | P21: 0 | Q21: 2528.94 | R21: 561923 | S21: =SUM(S22,S25) -> 6579.65 | T21: =SUM(T22,T25) -> 1406325
C22: 立木地 | D22: 総 数 | E22: 3085.75 | F22: 641596 | G22: 464.93 | H22: 110400 | I22: 324.38 | J22: 81014 | K22: 46.43 | L22: 11392 | M22: 0 | N22: 0 | O22: 0 | P22: 0 | Q22: 2466.9 | R22: 561923 | S22: =SUM(S23:S24) -> 6388.39 | T22: =SUM(T23:T24) -> 1406325
D23: 人工林 | E23: 1860.01 | F23: 487516 | G23: 239.41 | H23: 74549 | I23: 176.45 | J23: 54593 | K23: 45.46 | L23: 11330 | N23: 0 | P23: 0 | Q23: 1489.54 | R23: 418851 | S23: =E23+G23+I23+K23+M23+O23+Q23 -> 3810.87 | T23: 1046839
D24: 天然林 | E24: 1225.74 | F24: 154080 | G24: 225.52 | H24: 35851 | I24: 147.93 | J24: 26421 | K24: 0.97 | L24: 62 | N24: 0 | P24: 0 | Q24: 977.36 | R24: 143072 | S24: 2577.52 | T24: 359486
C25: その他 | E25: 109.26 | F25: 0 | G25: 13.1 | H25: 0 | I25: 6.14 | J25: 0 | K25: 0.72 | L25: 0 | N25: 0 | P25: 0 | Q25: 62.04 | R25: 0 | S25: 191.26 | T25: 0
B26: 富士見町 | C26: 総 数 | E26: 3063.78 | F26: 617546 | G26: 3999.92 | H26: 929787 | I26: 742.91 | J26: 192122 | K26: 24.96 | L26: 5050 | M26: 0 | N26: 0 | O26: 0 | P26: 0 | Q26: 86.93 | R26: 21920 | S26: =SUM(S27,S30) -> 7918.5 | T26: =SUM(T27,T30) -> 1766425
C27: 立木地 | D27: 総 数 | E27: 2940.14 | F27: 617317 | G27: 3867.95 | H27: 929787 | I27: 730.35 | J27: 192122 | K27: 24.54 | L27: 5050 | M27: 0 | N27: 0 | O27: 0 | P27: 0 | Q27: 86.58 | R27: 21920 | S27: =SUM(S28:S29) -> 7649.56 | T27: =SUM(T28:T29) -> 1766196
D28: 人工林 | E28: 1484.44 | F28: 399458 | G28: 2171.07 | H28: 610608 | I28: 417.8 | J28: 126117 | K28: 4.12 | L28: 1271 | N28: 0 | P28: 0 | Q28: 76.59 | R28: 19525 | S28: =E28+G28+I28+K28+M28+O28+Q28 -> 4154.02 | T28: 1156979
D29: 天然林 | E29: 1455.7 | F29: 217859 | G29: 1696.88 | H29: 319179 | I29: 312.55 | J29: 66005 | K29: 20.42 | L29: 3779 | N29: 0 | P29: 0 | Q29: 9.99 | R29: 2395 | S29: 3495.54 | T29: 609217
C30: その他 | E30: 123.64 | F30: 229 | G30: 131.97 | H30: 0 | I30: 12.56 | J30: 0 | K30: 0.42 | L30: 0 | N30: 0 | P30: 0 | Q30: 0.35 | R30: 0 | S30: 268.94 | T30: 229
B31: 原村 | C31: 総 数 | E31: 827.81 | F31: 169572 | G31: 165.94 | H31: 29527 | I31: 669.18 | J31: 125914 | K31: 282.22 | L31: 30275 | M31: 0 | N31: 0 | O31: 0 | P31: 0 | Q31: 460.1 | R31: 88766 | S31: =SUM(S32,S35) -> 2405.25 | T31: =SUM(T32,T35) -> 444054
C32: 立木地 | D32: 総 数 | E32: 789.06 | F32: 169572 | G32: 161.38 | H32: 29527 | I32: 653.53 | J32: 125914 | K32: 223.12 | L32: 30275 | M32: 0 | N32: 0 | O32: 0 | P32: 0 | Q32: 430.69 | R32: 88766 | S32: =SUM(S33:S34) -> 2257.78 | T32: =SUM(T33:T34) -> 444054
D33: 人工林 | E33: 504.53 | F33: 118666 | G33: 123.29 | H33: 24153 | I33: 316.27 | J33: 77520 | K33: 31.24 | L33: 5438 | N33: 0 | P33: 0 | Q33: 362.16 | R33: 78343 | S33: =E33+G33+I33+K33+M33+O33+Q33 -> 1337.49 | T33: 304120
D34: 天然林 | E34: 284.53 | F34: 50906 | G34: 38.09 | H34: 5374 | I34: 337.26 | J34: 48394 | K34: 191.88 | L34: 24837 | N34: 0 | P34: 0 | Q34: 68.53 | R34: 10423 | S34: 920.29 | T34: 139934
C35: その他 | E35: 38.75 | F35: 0 | G35: 4.56 | H35: 0 | I35: 15.65 | J35: 0 | K35: 59.1 | L35: 0 | N35: 0 | P35: 0 | Q35: 29.41 | R35: 0 | S35: 147.47 | T35: 0
B36: 諏訪計 | C36: 総 数 | E36: 16889.21 | F36: 3420527 | G36: 16878.93 | H36: 3807577 | I36: 6932.35 | J36: 1410611 | K36: 2455.89 | L36: 344986 | M36: 92.4 | N36: 21372 | O36: 0 | P36: 0 | Q36: 14157.24 | R36: 2983495 | S36: =SUM(S37,S40) -> 57406.02 | T36: =SUM(T37,T40) -> 11988568
C37: 立木地 | D37: 総 数 | E37: 16278.92 | F37: 3420298 | G37: 16343.73 | H37: 3807577 | I37: 6622.12 | J37: 1410611 | K37: 1658.46 | L37: 344986 | M37: 91.81 | N37: 21372 | O37: 0 | P37: 0 | Q37: 13675 | R37: 2983495 | S37: =SUM(S38:S39) -> 54670.04 | T37: =SUM(T38:T39) -> 11988339
D38: 人工林 | E38: 9249.46 | F38: 2379277 | G38: 10159.67 | H38: 2710893 | I38: 3366.85 | J38: 929822 | K38: 963.53 | L38: 247932 | M38: 29.94 | N38: 8302 | O38: 0 | P38: 0 | Q38: 8269.25 | R38: 2160506 | S38: =E38+G38+I38+K38+M38+O38+Q38 -> 32038.7 | T38: =F38+H38+J38+L38+N38+P38+R38 -> 8436732
D39: 天然林 | E39: 7029.46 | F39: 1041021 | G39: 6184.06 | H39: 1096684 | I39: 3255.27 | J39: 480789 | K39: 694.93 | L39: 97054 | M39: 61.87 | N39: 13070 | O39: 0 | P39: 0 | Q39: 5405.75 | R39: 822989 | S39: 22631.34 | T39: 3551607
C40: その他 | E40: 610.29 | F40: 229 | G40: 535.2 | H40: 0 | I40: 310.23 | J40: 0 | K40: 797.43 | L40: 0 | M40: 0.59 | N40: 0 | O40: 0 | P40: 0 | Q40: 482.24 | R40: 0 | S40: =E40+G40+I40+K40+M40+O40+Q40 -> 2735.98 | T40: 229
A41: 上伊那 | B41: 伊那市 | C41: 総 数 | E41: 10315.33 | F41: 2115912 | G41: 8445.99 | H41: 1793071 | I41: 0 | J41: 0 | K41: 1063.27 | L41: 194848 | M41: 0 | N41: 0 | O41: 0 | P41: 0 | Q41: 20663.86 | R41: 4428556 | S41: =SUM(S42,S45) -> 762881.16 | T41: =SUM(T42,T45) -> 8532387
C42: 立木地 | D42: 総 数 | E42: 10134.25 | F42: 2114920 | G42: 8243.94 | H42: 1792064 | I42: 0 | J42: 0 | K42: 1030.69 | L42: 194848 | M42: 0 | N42: 0 | O42: 0 | P42: 0 | Q42: 20288.28 | R42: 4427564 | S42: =SUM(S43:S44) -> 39697.16 | T42: =SUM(T43:T44) -> 8529396
D43: 人工林 | E43: 7083.51 | F43: 1673789 | G43: 5290.24 | H43: 1347144 | J43: 0 | K43: 336.14 | L43: 87609 | N43: 0 | P43: 0 | Q43: 13549.3 | R43: 3384412 | S43: =E43+G43+I43+K43+M43+O43+Q43 -> 26259.19 | T43: 6492954
D44: 天然林 | E44: 3050.74 | F44: 441131 | G44: 2953.7 | H44: 444920 | J44: 0 | K44: 694.55 | L44: 107239 | N44: 0 | P44: 0 | Q44: 6738.98 | R44: 1043152 | S44: 13437.97 | T44: 2036442
C45: その他 | E45: 181.08 | F45: 992 | G45: 202.05 | H45: 1007 | J45: 0 | K45: 32.58 | L45: 0 | N45: 0 | P45: 0 | Q45: 375.58 | R45: 992 | S45: 723184 | T45: 2991
B46: 駒ヶ根市 | C46: 総 数 | E46: 2553.48 | F46: 507841 | G46: 982.25 | H46: 196741 | I46: 0 | J46: 0 | K46: 440.39 | L46: 85168 | M46: 17.86 | N46: 5919 | O46: 0 | P46: 0 | Q46: 3597.49 | R46: 797511 | S46: 180874 | T46: =SUM(T47,T50) -> 1593180
C47: 立木地 | D47: 総 数 | E47: 2475.36 | F47: 507841 | G47: 934.64 | H47: 196741 | I47: 0 | J47: 0 | K47: 434.36 | L47: 85168 | M47: 17.8 | N47: 5919 | O47: 0 | P47: 0 | Q47: 3544.16 | R47: 797511 | S47: 0 | T47: =SUM(T48:T49) -> 1593180
D48: 人工林 | E48: 1766.29 | F48: 411453 | G48: 537.34 | H48: 135162 | J48: 0 | K48: 221.35 | L48: 53890 | M48: 12.51 | N48: 4196 | P48: 0 | Q48: 1990.38 | R48: 511589 | S48: =E48+G48+I48+K48+M48+O48+Q48 -> 4527.87 | T48: 1116290
D49: 天然林 | E49: 709.07 | F49: 96388 | G49: 397.3 | H49: 61579 | J49: 0 | K49: 213.01 | L49: 31278 | M49: 5.29 | N49: 1723 | P49: 0 | Q49: 1553.78 | R49: 285922 | S49: 2878.45 | T49: 476890
C50: その他 | E50: 78.12 | F50: 0 | G50: 47.61 | H50: 0 | J50: 0 | K50: 6.03 | L50: 0 | M50: 0.06 | N50: 0 | P50: 0 | Q50: 53.33 | R50: 0 | S50: 185.15 | T50: 0
B51: 辰野町 | C51: 総 数 | E51: 2849.68 | F51: 656645 | G51: 2719.9 | H51: 647352 | I51: 0 | J51: 0 | K51: 163.62 | L51: 40804 | M51: 0 | N51: 0 | O51: 0 | P51: 0 | Q51: 5644.63 | R51: 1357329 | S51: =SUM(S52,S55) -> 11377.83 | T51: =SUM(T52,T55) -> 2702130
C52: 立木地 | D52: 総 数 | E52: 2811.51 | F52: 656645 | G52: 2673.34 | H52: 647352 | I52: 0 | J52: 0 | K52: 162.75 | L52: 40804 | M52: 0 | N52: 0 | O52: 0 | P52: 0 | Q52: 5567.67 | R52: 1357329 | S52: =SUM(S53:S54) -> 11215.27 | T52: =SUM(T53:T54) -> 2702130
D53: 人工林 | E53: 2001.28 | F53: 496408 | G53: 1663.36 | H53: 444646 | J53: 0 | K53: 116.79 | L53: 30036 | N53: 0 | P53: 0 | Q53: 4101.79 | R53: 1068225 | S53: =E53+G53+I53+K53+M53+O53+Q53 -> 7883.22 | T53: 2039315
D54: 天然林 | E54: 810.23 | F54: 160237 | G54: 1009.98 | H54: 202706 | J54: 0 | K54: 45.96 | L54: 10768 | N54: 0 | P54: 0 | Q54: 1465.88 | R54: 289104 | S54: 3332.05 | T54: 662815
C55: その他 | E55: 38.17 | F55: 0 | G55: 46.56 | H55: 0 | J55: 0 | K55: 0.87 | L55: 0 | N55: 0 | P55: 0 | Q55: 76.96 | R55: 0 | S55: 162.56 | T55: 0
B56: 箕輪町 | C56: 総 数 | E56: 3605.39 | F56: 820043 | G56: 1413.5 | H56: 312924 | I56: 0 | J56: 0 | K56: 441.04 | L56: 103744 | M56: 2.67 | N56: 576 | O56: 0 | P56: 0 | Q56: 4051.25 | R56: 943452 | S56: =SUM(S57,S60) -> 9513.85 | T56: =SUM(T57,T60) -> 2180739
C57: 立木地 | D57: 総 数 | E57: 3563.34 | F57: 820043 | G57: 1404.35 | H57: 312924 | I57: 0 | J57: 0 | K57: 440.11 | L57: 103744 | M57: 2.67 | N57: 576 | O57: 0 | P57: 0 | Q57: 4005.88 | R57: 943452 | S57: =SUM(S58:S59) -> 9416.35 | T57: =SUM(T58:T59) -> 2180739
D58: 人工林 | E58: 2565.94 | F58: 659185 | G58: 856.18 | H58: 219263 | J58: 0 | K58: 273.96 | L58: 72332 | M58: 0.99 | N58: 231 | P58: 0 | Q58: 2891.89 | R58: 756343 | S58: =E58+G58+I58+K58+M58+O58+Q58 -> 6588.96 | T58: 1707354
D59: 天然林 | E59: 997.4 | F59: 160858 | G59: 548.17 | H59: 93661 | J59: 0 | K59: 166.15 | L59: 31412 | M59: 1.68 | N59: 345 | P59: 0 | Q59: 1113.99 | R59: 187109 | S59: 2827.39 | T59: 473385
C60: その他 | E60: 42.05 | F60: 0 | G60: 9.15 | H60: 0 | J60: 0 | K60: 0.93 | L60: 0 | N60: 0 | P60: 0 | Q60: 45.37 | R60: 0 | S60: 97.5 | T60: 0
A61: 上伊那 | B61: 飯島町 | C61: 総 数 | E61: 966.75 | F61: 178447 | G61: 669.3 | H61: 135263 | I61: 0 | J61: 0 | K61: 143.49 | L61: 25395 | M61: 0 | N61: 0 | O61: 0 | P61: 0 | Q61: 2058.76 | R61: 409073 | S61: =SUM(S62,S65) -> 3838.3 | T61: =SUM(T62,T65) -> 748178
C62: 立木地 | D62: 総 数 | E62: 916.7 | F62: 178447 | G62: 645.48 | H62: 135263 | I62: 0 | J62: 0 | K62: 134.46 | L62: 25395 | M62: 0 | N62: 0 | O62: 0 | P62: 0 | Q62: 1965.81 | R62: 409073 | S62: =SUM(S63:S64) -> 3662.45 | T62: =SUM(T63:T64) -> 748178
D63: 人工林 | E63: 504.38 | F63: 125174 | G63: 377.62 | H63: 92726 | J63: 0 | K63: 37.61 | L63: 10116 | N63: 0 | P63: 0 | Q63: 1048.32 | R63: 263470 | S63: =E63+G63+I63+K63+M63+O63+Q63 -> 1967.93 | T63: 491486
D64: 天然林 | E64: 412.32 | F64: 53273 | G64: 267.86 | H64: 42537 | J64: 0 | K64: 96.85 | L64: 15279 | N64: 0 | P64: 0 | Q64: 917.49 | R64: 145603 | S64: 1694.52 | T64: 256692
C65: その他 | E65: 50.05 | F65: 0 | G65: 23.82 | H65: 0 | J65: 0 | K65: 9.03 | L65: 0 | N65: 0 | P65: 0 | Q65: 92.95 | R65: 0 | S65: 175.85 | T65: 0
B66: 南箕輪村 | C66: 総 数 | E66: 1772.45 | F66: 367752 | G66: 997.36 | H66: 199867 | I66: 92.93 | J66: 30725 | K66: 88.35 | L66: 36660 | M66: 5.08 | N66: 1243 | O66: 0 | P66: 0 | Q66: 1854.91 | R66: 410454 | S66: =SUM(S67,S70) -> 4811.08 | T66: =SUM(T67,T70) -> 1046701
C67: 立木地 | D67: 総 数 | E67: 1743.49 | F67: 367752 | G67: 970.41 | H67: 199867 | I67: 91.76 | J67: 30725 | K67: 88.35 | L67: 36660 | M67: 5.08 | N67: 1243 | O67: 0 | P67: 0 | Q67: 1822.38 | R67: 410454 | S67: =SUM(S68:S69) -> 4721.47 | T67: =SUM(T68:T69) -> 1046701
D68: 人工林 | E68: 1368.65 | F68: 325605 | G68: 632.29 | H68: 158979 | I68: 53.12 | J68: 21903 | K68: 67.55 | L68: 31969 | M68: 5.02 | N68: 1239 | P68: 0 | Q68: 1395.25 | R68: 352885 | S68: =E68+G68+I68+K68+M68+O68+Q68 -> 3521.88 | T68: 892580
D69: 天然林 | E69: 374.84 | F69: 42147 | G69: 338.12 | H69: 40888 | I69: 38.64 | J69: 8822 | K69: 20.8 | L69: 4691 | M69: 0.06 | N69: 4 | P69: 0 | Q69: 427.13 | R69: 57569 | S69: 1199.59 | T69: 154121
C70: その他 | E70: 28.96 | F70: 0 | G70: 26.95 | H70: 0 | I70: 1.17 | J70: 0 | L70: 0 | N70: 0 | P70: 0 | Q70: 32.53 | R70: 0 | S70: 89.61 | T70: 0
B71: 中川村 | C71: 総 数 | E71: 854.02 | F71: 170488 | G71: 347.44 | H71: 55452 | I71: 0 | J71: 0 | K71: 33.65 | L71: 7016 | M71: 0 | N71: 0 | O71: 0 | P71: 0 | Q71: 4678.24 | R71: 875158 | S71: =SUM(S72,S75) -> 5913.35 | T71: =SUM(T72,T75) -> 1108114
C72: 立木地 | D72: 総 数 | E72: 831.68 | F72: 170488 | G72: 334.85 | H72: 55452 | I72: 0 | J72: 0 | K72: 31.01 | L72: 7016 | M72: 0 | N72: 0 | O72: 0 | P72: 0 | Q72: 4497.9 | R72: 875158 | S72: =SUM(S73:S74) -> 5695.44 | T72: =SUM(T73:T74) -> 1108114
D73: 人工林 | E73: 690 | F73: 150483 | G73: 233.94 | H73: 42491 | J73: 0 | K73: 8.25 | L73: 1807 | N73: 0 | P73: 0 | Q73: 2158.37 | R73: 521749 | S73: =E73+G73+I73+K73+M73+O73+Q73 -> 3090.56 | T73: 716530
D74: 天然林 | E74: 141.68 | F74: 20005 | G74: 100.91 | H74: 12961 | J74: 0 | K74: 22.76 | L74: 5209 | N74: 0 | P74: 0 | Q74: 2339.53 | R74: 353409 | S74: 2604.88 | T74: 391584
C75: その他 | E75: 22.34 | F75: 0 | G75: 12.59 | H75: 0 | J75: 0 | K75: 2.64 | L75: 0 | N75: 0 | P75: 0 | Q75: 180.34 | R75: 0 | S75: 217.91 | T75: 0
B76: 宮田村 | C76: 総 数 | E76: 336.27 | F76: 71073 | G76: 773.04 | H76: 180140 | I76: 0 | J76: 0 | K76: 269.67 | L76: 56811 | M76: 0 | N76: 0 | O76: 0 | P76: 0 | Q76: 1392.36 | R76: 319819 | S76: =SUM(S77,S80) -> 2771.34 | T76: =SUM(T77,T80) -> 627843
C77: 立木地 | D77: 総 数 | E77: 331.02 | F77: 71073 | G77: 765.8 | H77: 180140 | I77: 0 | J77: 0 | K77: 256.31 | L77: 56811 | M77: 0 | N77: 0 | O77: 0 | P77: 0 | Q77: 1367.88 | R77: 319819 | S77: =SUM(S78:S79) -> 2721.01 | T77: =SUM(T78:T79) -> 627843
D78: 人工林 | E78: 201.91 | F78: 52921 | G78: 584.92 | H78: 153824 | J78: 0 | K78: 200.34 | L78: 51558 | N78: 0 | P78: 0 | Q78: 1070.51 | R78: 278177 | S78: =E78+G78+I78+K78+M78+O78+Q78 -> 2057.68 | T78: 536480
D79: 天然林 | E79: 129.11 | F79: 18152 | G79: 180.88 | H79: 26316 | J79: 0 | K79: 55.97 | L79: 5253 | N79: 0 | P79: 0 | Q79: 297.37 | R79: 41642 | S79: 663.33 | T79: 91363
C80: その他 | E80: 5.25 | F80: 0 | G80: 7.24 | H80: 0 | J80: 0 | K80: 13.36 | L80: 0 | N80: 0 | P80: 0 | Q80: 24.48 | R80: 0 | S80: 50.33 | T80: 0
B81: 上伊那計 | C81: 総 数 | E81: 23253.37 | F81: 4888201 | G81: 16348.78 | H81: 3520810 | I81: 92.93 | J81: 30725 | K81: 2643.48 | L81: 550446 | M81: 25.61 | N81: 7738 | O81: 0 | P81: 0 | Q81: 43941.5 | R81: 9541352 | S81: =SUM(S82,S85) -> 86305.67 | T81: =SUM(T82,T85) -> 18539272
C82: 立木地 | D82: 総 数 | E82: 22807.35 | F82: 4887209 | G82: 15972.81 | H82: 3519803 | I82: 91.76 | J82: 30725 | K82: 2578.04 | L82: 550446 | M82: 25.55 | N82: 7738 | O82: 0 | P82: 0 | Q82: 43059.96 | R82: 9540360 | S82: =SUM(S83:S84) -> 84535.47 | T82: =SUM(T83:T84) -> 18536281
D83: 人工林 | E83: 16181.96 | F83: 3895018 | G83: 10175.89 | H83: 2594235 | I83: 53.12 | J83: 21903 | K83: 1261.99 | L83: 339317 | M83: 18.52 | N83: 5666 | O83: 0 | P83: 0 | Q83: 28205.81 | R83: 7136850 | S83: =E83+G83+I83+K83+M83+O83+Q83 -> 55897.29 | T83: 13992989
D84: 天然林 | E84: 6625.39 | F84: 992191 | G84: 5796.92 | H84: 925568 | I84: 38.64 | J84: 8822 | K84: 1316.05 | L84: 211129 | M84: 7.03 | N84: 2072 | O84: 0 | P84: 0 | Q84: 14854.15 | R84: 2403510 | S84: 28638.18 | T84: 4543292
C85: その他 | E85: 446.02 | F85: 992 | G85: 375.97 | H85: 1007 | I85: 1.17 | J85: 0 | K85: 65.44 | L85: 0 | M85: 0.06 | N85: 0 | O85: 0 | P85: 0 | Q85: 881.54 | R85: 992 | S85: 1770.2 | T85: 2991
A86: 南信州 | B86: 飯田市 | C86: 総 数 | E86: 38132.08 | F86: 6695015 | G86: 11225.23 | H86: 1748937 | I86: 0 | J86: 0 | K86: 327.73 | L86: 66812 | M86: 0 | N86: 0 | O86: 0 | P86: 0 | Q86: 9559.19 | R86: 2027362 | S86: =SUM(S87,S90) -> 59244.23 | T86: =SUM(T87,T90) -> 10538126
C87: 立木地 | D87: 総 数 | E87: 36938.55 | F87: 6695015 | G87: 10660.95 | H87: 1748937 | I87: 0 | J87: 0 | K87: 320.24 | L87: 66812 | M87: 0 | N87: 0 | O87: 0 | P87: 0 | Q87: 9360.39 | R87: 2027362 | S87: =SUM(S88:S89) -> 57280.13 | T87: =SUM(T88:T89) -> 10538126
D88: 人工林 | E88: 15846.83 | F88: 3944852 | G88: 3688.81 | H88: 841134 | J88: 0 | K88: 146.46 | L88: 36117 | N88: 0 | P88: 0 | Q88: 5581.03 | R88: 1504624 | S88: =E88+G88+I88+K88+M88+O88+Q88 -> 25263.13 | T88: 6326727
D89: 天然林 | E89: 21091.72 | F89: 2750163 | G89: 6972.14 | H89: 907803 | J89: 0 | K89: 173.78 | L89: 30695 | N89: 0 | P89: 0 | Q89: 3779.36 | R89: 522738 | S89: 32017 | T89: 4211399
C90: その他 | E90: 1193.53 | F90: 0 | G90: 564.28 | H90: 0 | J90: 0 | K90: 7.49 | L90: 0 | N90: 0 | P90: 0 | Q90: 198.8 | R90: 0 | S90: 1964.1 | T90: 0
B91: 松川町 | C91: 総 数 | E91: 1319.16 | F91: 263271 | G91: 878.24 | H91: 173483 | I91: 0 | J91: 0 | K91: 387 | L91: 61633 | M91: 0 | N91: 0 | O91: 0 | P91: 0 | Q91: 708.82 | R91: 166500 | S91: =SUM(S92,S95) -> 3293.22 | T91: =SUM(T92,T95) -> 664887
C92: 立木地 | D92: 総 数 | E92: 1263.86 | F92: 263271 | G92: 857.81 | H92: 173483 | I92: 0 | J92: 0 | K92: 374.11 | L92: 61633 | M92: 0 | N92: 0 | O92: 0 | P92: 0 | Q92: 699.4 | R92: 166500 | S92: =SUM(S93:S94) -> 3195.18 | T92: =SUM(T93:T94) -> 664887
D93: 人工林 | E93: 653.86 | F93: 170528 | G93: 373.91 | H93: 83631 | J93: 0 | K93: 87.31 | L93: 21315 | N93: 0 | P93: 0 | Q93: 422.15 | R93: 104744 | S93: =E93+G93+I93+K93+M93+O93+Q93 -> 1537.23 | T93: 380218
D94: 天然林 | E94: 610 | F94: 92743 | G94: 483.9 | H94: 89852 | J94: 0 | K94: 286.8 | L94: 40318 | N94: 0 | P94: 0 | Q94: 277.25 | R94: 61756 | S94: 1657.95 | T94: 284669
C95: その他 | E95: 55.3 | F95: 0 | G95: 20.43 | H95: 0 | J95: 0 | K95: 12.89 | L95: 0 | N95: 0 | P95: 0 | Q95: 9.42 | R95: 0 | S95: 98.04 | T95: 0
B96: 高森町 | C96: 総 数 | E96: 1070.77 | F96: 215001 | G96: 1061.61 | H96: 241035 | I96: 0 | J96: 0 | K96: 0 | L96: 0 | M96: 0 | N96: 0 | O96: 0 | P96: 0 | Q96: 218.61 | R96: 49968 | S96: =SUM(S97,S100) -> 2350.99 | T96: =SUM(T97,T100) -> 506004
C97: 立木地 | D97: 総 数 | E97: 1037.22 | F97: 215001 | G97: 1049.77 | H97: 241035 | I97: 0 | J97: 0 | K97: 0 | L97: 0 | M97: 0 | N97: 0 | O97: 0 | P97: 0 | Q97: 214.07 | R97: 49968 | S97: =SUM(S98:S99) -> 2301.06 | T97: =SUM(T98:T99) -> 506004
D98: 人工林 | E98: 620.49 | F98: 156142 | G98: 650.52 | H98: 158797 | J98: 0 | L98: 0 | N98: 0 | P98: 0 | Q98: 152.74 | R98: 35572 | S98: =E98+G98+I98+K98+M98+O98+Q98 -> 1423.75 | T98: 350511
D99: 天然林 | E99: 416.73 | F99: 58859 | G99: 399.25 | H99: 82238 | J99: 0 | L99: 0 | N99: 0 | P99: 0 | Q99: 61.33 | R99: 14396 | S99: 877.31 | T99: 155493
C100: その他 | E100: 33.55 | F100: 0 | G100: 11.84 | H100: 0 | J100: 0 | L100: 0 | N100: 0 | P100: 0 | Q100: 4.54 | R100: 0 | S100: 49.93 | T100: 0
B101: 阿南町 | C101: 総 数 | E101: 9420.24 | F101: 1795387 | G101: 699.01 | H101: 126743 | I101: 0 | J101: 0 | K101: 0 | L101: 0 | M101: 0 | N101: 0 | O101: 0 | P101: 0 | Q101: 2266.23 | R101: 528580 | S101: =SUM(S102,S105) -> 12385.48 | T101: =SUM(T102,T105) -> 2450710
C102: 立木地 | D102: 総 数 | E102: 9252.57 | F102: 1795387 | G102: 687.47 | H102: 126743 | I102: 0 | J102: 0 | K102: 0 | L102: 0 | M102: 0 | N102: 0 | O102: 0 | P102: 0 | Q102: 2230.83 | R102: 528580 | S102: =SUM(S103:S104) -> 12170.87 | T102: =SUM(T103:T104) -> 2450710
D103: 人工林 | E103: 4125.38 | F103: 1100112 | G103: 515.21 | H103: 108552 | J103: 0 | L103: 0 | N103: 0 | P103: 0 | Q103: 1493.55 | R103: 417275 | S103: =E103+G103+I103+K103+M103+O103+Q103 -> 6134.14 | T103: 1625939
D104: 天然林 | E104: 5127.19 | F104: 695275 | G104: 172.26 | H104: 18191 | J104: 0 | L104: 0 | N104: 0 | P104: 0 | Q104: 737.28 | R104: 111305 | S104: 6036.73 | T104: 824771
C105: その他 | E105: 167.67 | F105: 0 | G105: 11.54 | H105: 0 | J105: 0 | L105: 0 | N105: 0 | P105: 0 | Q105: 35.4 | R105: 0 | S105: 214.61 | T105: 0
B106: 阿智村 | C106: 総 数 | E106: 16518.28 | F106: 3079220 | G106: 804.56 | H106: 137839 | I106: 0 | J106: 0 | K106: 0 | L106: 0 | M106: 0 | N106: 0 | O106: 0 | P106: 0 | Q106: 11204.71 | R106: 2152050 | S106: =SUM(S107,S110) -> 28527.55 | T106: =SUM(T107,T110) -> 5369109
C107: 立木地 | D107: 総 数 | E107: 15972.44 | F107: 3079220 | G107: 773.92 | H107: 137839 | I107: 0 | J107: 0 | K107: 0 | L107: 0 | M107: 0 | N107: 0 | O107: 0 | P107: 0 | Q107: 10856.83 | R107: 2152050 | S107: =SUM(S108:S109) -> 27603.19 | T107: =SUM(T108:T109) -> 5369109
D108: 人工林 | E108: 8364.4 | F108: 2140508 | G108: 599.28 | H108: 119312 | J108: 0 | L108: 0 | N108: 0 | P108: 0 | Q108: 5806.67 | R108: 1511721 | S108: =E108+G108+I108+K108+M108+O108+Q108 -> 14770.35 | T108: 3771541
D109: 天然林 | E109: 7608.04 | F109: 938712 | G109: 174.64 | H109: 18527 | J109: 0 | L109: 0 | N109: 0 | P109: 0 | Q109: 5050.16 | R109: 640329 | S109: 12832.84 | T109: 1597568
C110: その他 | E110: 545.84 | F110: 0 | G110: 30.64 | H110: 0 | J110: 0 | L110: 0 | N110: 0 | P110: 0 | Q110: 347.88 | R110: 0 | S110: 924.36 | T110: 0
B111: 平谷村 | C111: 総 数 | E111: 6997.71 | F111: 1186353 | G111: 260.41 | H111: 45376 | I111: 0 | J111: 0 | K111: 0 | L111: 0 | M111: 0 | N111: 0 | O111: 0 | P111: 0 | Q111: 2472.61 | R111: 583708 | S111: =SUM(S112,S115) -> 9730.73 | T111: =SUM(T112,T115) -> 1815437
C112: 立木地 | D112: 総 数 | E112: 6679.22 | F112: 1185069 | G112: 243.04 | H112: 45376 | I112: 0 | J112: 0 | K112: 0 | L112: 0 | M112: 0 | N112: 0 | O112: 0 | P112: 0 | Q112: 2379.69 | R112: 582424 | S112: =SUM(S113:S114) -> 9301.95 | T112: =SUM(T113:T114) -> 1812869
D113: 人工林 | E113: 3258.26 | F113: 809764 | G113: 226.5 | H113: 43829 | J113: 0 | L113: 0 | N113: 0 | P113: 0 | Q113: 1893.59 | R113: 522776 | S113: =E113+G113+I113+K113+M113+O113+Q113 -> 5378.35 | T113: 1376369
D114: 天然林 | E114: 3420.96 | F114: 375305 | G114: 16.54 | H114: 1547 | J114: 0 | L114: 0 | N114: 0 | P114: 0 | Q114: 486.1 | R114: 59648 | S114: 3923.6 | T114: 436500
C115: その他 | E115: 318.49 | F115: 1284 | G115: 17.37 | H115: 0 | J115: 0 | L115: 0 | N115: 0 | P115: 0 | Q115: 92.92 | R115: 1284 | S115: 428.78 | T115: 2568
A116: 南信州 | B116: 根羽村 | C116: 総 数 | E116: 7288.96 | F116: 2074906 | G116: 528.52 | H116: 118347 | I116: 0 | J116: 0 | K116: 619.62 | L116: 95236 | M116: 0 | N116: 0 | O116: 0 | P116: 0 | Q116: 7813.84 | R116: 2192456 | S116: =SUM(S117,S120) -> 16250.94 | T116: =SUM(T117,T120) -> 4480945
C117: 立木地 | D117: 総 数 | E117: 7201.75 | F117: 2074906 | G117: 517.47 | H117: 118347 | I117: 0 | J117: 0 | K117: 613.58 | L117: 95236 | M117: 0 | N117: 0 | O117: 0 | P117: 0 | Q117: 7715.86 | R117: 2192456 | S117: =SUM(S118:S119) -> 16048.66 | T117: =SUM(T118:T119) -> 4480945
D118: 人工林 | E118: 5603.85 | F118: 1876163 | G118: 445.78 | H118: 108621 | J118: 0 | K118: 113.94 | L118: 31871 | N118: 0 | P118: 0 | Q118: 6046.27 | R118: 1983987 | S118: =E118+G118+I118+K118+M118+O118+Q118 -> 12209.84 | T118: 4000642
D119: 天然林 | E119: 1597.9 | F119: 198743 | G119: 71.69 | H119: 9726 | J119: 0 | K119: 499.64 | L119: 63365 | N119: 0 | P119: 0 | Q119: 1669.59 | R119: 208469 | S119: 3838.82 | T119: 480303
C120: その他 | E120: 87.21 | F120: 0 | G120: 11.05 | H120: 0 | J120: 0 | K120: 6.04 | L120: 0 | N120: 0 | P120: 0 | Q120: 97.98 | R120: 0 | S120: 202.28 | T120: 0
B121: 下條村 | C121: 総 数 | E121: 2044.7 | F121: 379815 | G121: 279.56 | H121: 51279 | I121: 0 | J121: 0 | K121: 0 | L121: 0 | M121: 0 | N121: 0 | O121: 0 | P121: 0 | Q121: 603.54 | R121: 127140 | S121: =SUM(S122,S125) -> 2927.8 | T121: =SUM(T122,T125) -> 558234
C122: 立木地 | D122: 総 数 | E122: 1988.75 | F122: 379815 | G122: 264.97 | H122: 51279 | I122: 0 | J122: 0 | K122: 0 | L122: 0 | M122: 0 | N122: 0 | O122: 0 | P122: 0 | Q122: 594.87 | R122: 127140 | S122: =SUM(S123:S124) -> 2848.59 | T122: =SUM(T123:T124) -> 558234
D123: 人工林 | E123: 787.35 | F123: 203590 | G123: 193.06 | H123: 43127 | J123: 0 | L123: 0 | N123: 0 | P123: 0 | Q123: 314 | R123: 80783 | S123: =E123+G123+I123+K123+M123+O123+Q123 -> 1294.41 | T123: 327500
D124: 天然林 | E124: 1201.4 | F124: 176225 | G124: 71.91 | H124: 8152 | J124: 0 | L124: 0 | N124: 0 | P124: 0 | Q124: 280.87 | R124: 46357 | S124: 1554.18 | T124: 230734
C125: その他 | E125: 55.95 | F125: 0 | G125: 14.59 | H125: 0 | J125: 0 | L125: 0 | N125: 0 | P125: 0 | Q125: 8.67 | R125: 0 | S125: 79.21 | T125: 0
B126: 売木村 | C126: 総 数 | E126: 3308 | F126: 753086 | G126: 162.16 | H126: 29444 | I126: 0 | J126: 0 | K126: 334.78 | L126: 75854 | M126: 0 | N126: 0 | O126: 0 | P126: 0 | Q126: 3307.95 | R126: 753080 | S126: =SUM(S127,S130) -> 7112.89 | T126: =SUM(T127,T130) -> 1611464
C127: 立木地 | D127: 総 数 | E127: 3274.83 | F127: 753086 | G127: 156.76 | H127: 29444 | I127: 0 | J127: 0 | K127: 332.42 | L127: 75854 | M127: 0 | N127: 0 | O127: 0 | P127: 0 | Q127: 3274.78 | R127: 753080 | S127: =SUM(S128:S129) -> 7038.79 | T127: =SUM(T128:T129) -> 1611464
D128: 人工林 | E128: 2391.24 | F128: 627338 | G128: 150.96 | H128: 28756 | J128: 0 | K128: 207.2 | L128: 56461 | N128: 0 | P128: 0 | Q128: 2391.24 | R128: 627338 | S128: =E128+G128+I128+K128+M128+O128+Q128 -> 5140.64 | T128: 1339893
D129: 天然林 | E129: 883.59 | F129: 125748 | G129: 5.8 | H129: 688 | J129: 0 | K129: 125.22 | L129: 19393 | N129: 0 | P129: 0 | Q129: 883.54 | R129: 125742 | S129: 1898.15 | T129: 271571
C130: その他 | E130: 33.17 | F130: 0 | G130: 5.4 | H130: 0 | J130: 0 | K130: 2.36 | L130: 0 | N130: 0 | P130: 0 | Q130: 33.17 | R130: 0 | S130: 74.1 | T130: 0
B131: 天龍村 | C131: 総 数 | E131: 8477.77 | F131: 1854823 | G131: 905.97 | H131: 170500 | I131: 0 | J131: 0 | K131: 811.36 | L131: 195725 | M131: 0 | N131: 0 | O131: 0 | P131: 0 | Q131: 3239.85 | R131: 805440 | S131: =SUM(S132,S135) -> 13434.95 | T131: =SUM(T132,T135) -> 3026488
C132: 立木地 | D132: 総 数 | E132: 8251.6 | F132: 1854823 | G132: 887.76 | H132: 170500 | I132: 0 | J132: 0 | K132: 793.04 | L132: 195725 | M132: 0 | N132: 0 | O132: 0 | P132: 0 | Q132: 3168.69 | R132: 805440 | S132: =SUM(S133:S134) -> 13101.09 | T132: =SUM(T133:T134) -> 3026488
D133: 人工林 | E133: 4045.65 | F133: 1320203 | G133: 561.02 | H133: 130620 | J133: 0 | K133: 404.52 | L133: 144737 | N133: 0 | P133: 0 | Q133: 2060.7 | R133: 671922 | S133: =E133+G133+I133+K133+M133+O133+Q133 -> 7071.89 | T133: 2267482
D134: 天然林 | E134: 4205.95 | F134: 534620 | G134: 326.74 | H134: 39880 | J134: 0 | K134: 388.52 | L134: 50988 | N134: 0 | P134: 0 | Q134: 1107.99 | R134: 133518 | S134: 6029.2 | T134: 759006
C135: その他 | E135: 226.17 | F135: 0 | G135: 18.21 | H135: 0 | J135: 0 | K135: 18.32 | L135: 0 | N135: 0 | P135: 0 | Q135: 71.16 | R135: 0 | S135: 333.86 | T135: 0
B136: 泰阜村 | C136: 総 数 | E136: 4993.46 | F136: 802762 | G136: 606.25 | H136: 99322 | I136: 0 | J136: 0 | K136: 0 | L136: 0 | M136: 0 | N136: 0 | O136: 0 | P136: 0 | Q136: 3170.59 | R136: 530372 | S136: =SUM(S137,S140) -> 8770.3 | T136: =SUM(T137,T140) -> 1432456
C137: 立木地 | D137: 総 数 | E137: 4931.56 | F137: 802762 | G137: 590.76 | H137: 99322 | I137: 0 | J137: 0 | K137: 0 | L137: 0 | M137: 0 | N137: 0 | O137: 0 | P137: 0 | Q137: 3124.7 | R137: 530372 | S137: =SUM(S138:S139) -> 8647.02 | T137: =SUM(T138:T139) -> 1432456
D138: 人工林 | E138: 1448.34 | F138: 346486 | G138: 287.37 | H138: 61649 | J138: 0 | L138: 0 | N138: 0 | P138: 0 | Q138: 1246.7 | R138: 287346 | S138: =E138+G138+I138+K138+M138+O138+Q138 -> 2982.41 | T138: 695481
D139: 天然林 | E139: 3483.22 | F139: 456276 | G139: 303.39 | H139: 37673 | J139: 0 | L139: 0 | N139: 0 | P139: 0 | Q139: 1878 | R139: 243026 | S139: 5664.61 | T139: 736975
C140: その他 | E140: 61.9 | F140: 0 | G140: 15.49 | H140: 0 | J140: 0 | L140: 0 | N140: 0 | P140: 0 | Q140: 45.89 | R140: 0 | S140: 123.28 | T140: 0
B141: 喬木村 | C141: 総 数 | E141: 3027.78 | F141: 581765 | G141: 467.83 | H141: 93162 | I141: 0 | J141: 0 | K141: 142.19 | L141: 26641 | M141: 0 | N141: 0 | O141: 0 | P141: 0 | Q141: 116.13 | R141: 24320 | S141: =SUM(S142,S145) -> 3753.93 | T141: =SUM(T142,T145) -> 725888
C142: 立木地 | D142: 総 数 | E142: 2968.88 | F142: 581765 | G142: 447.34 | H142: 93162 | I142: 0 | J142: 0 | K142: 138.4 | L142: 26641 | M142: 0 | N142: 0 | O142: 0 | P142: 0 | Q142: 113.86 | R142: 24320 | S142: =SUM(S143:S144) -> 3668.48 | T142: =SUM(T143:T144) -> 725888
D143: 人工林 | E143: 1495.94 | F143: 369790 | G143: 226.76 | H143: 57206 | J143: 0 | K143: 78.25 | L143: 17681 | N143: 0 | P143: 0 | Q143: 51.29 | R143: 11294 | S143: =E143+G143+I143+K143+M143+O143+Q143 -> 1852.24 | T143: 455971
D144: 天然林 | E144: 1472.94 | F144: 211975 | G144: 220.58 | H144: 35956 | J144: 0 | K144: 60.15 | L144: 8960 | N144: 0 | P144: 0 | Q144: 62.57 | R144: 13026 | S144: 1816.24 | T144: 269917
C145: その他 | E145: 58.9 | F145: 0 | G145: 20.49 | H145: 0 | J145: 0 | K145: 3.79 | L145: 0 | N145: 0 | P145: 0 | Q145: 2.27 | R145: 0 | S145: 85.45 | T145: 0
B146: 豊丘村 | C146: 総 数 | E146: 4521.19 | F146: 907815 | G146: 545.37 | H146: 105053 | I146: 0 | J146: 0 | K146: 0 | L146: 0 | M146: 0 | N146: 0 | O146: 0 | P146: 0 | Q146: 129.39 | R146: 31276 | S146: =SUM(S147,S150) -> 5195.95 | T146: =SUM(T147,T150) -> 1044144
C147: 立木地 | D147: 総 数 | E147: 4409.41 | F147: 907815 | G147: 527.92 | H147: 105053 | I147: 0 | J147: 0 | K147: 0 | L147: 0 | M147: 0 | N147: 0 | O147: 0 | P147: 0 | Q147: 128.17 | R147: 31276 | S147: =SUM(S148:S149) -> 5065.5 | T147: =SUM(T148:T149) -> 1044144
D148: 人工林 | E148: 1883.07 | F148: 487408 | G148: 191.25 | H148: 47092 | J148: 0 | L148: 0 | N148: 0 | P148: 0 | Q148: 65.26 | R148: 17483 | S148: =E148+G148+I148+K148+M148+O148+Q148 -> 2139.58 | T148: 551983
D149: 天然林 | E149: 2526.34 | F149: 420407 | G149: 336.67 | H149: 57961 | J149: 0 | L149: 0 | N149: 0 | P149: 0 | Q149: 62.91 | R149: 13793 | S149: 2925.92 | T149: 492161
C150: その他 | E150: 111.78 | F150: 0 | G150: 17.45 | H150: 0 | J150: 0 | L150: 0 | N150: 0 | P150: 0 | Q150: 1.22 | R150: 0 | S150: 130.45 | T150: 0
B151: 大鹿村 | C151: 総 数 | E151: 11582.53 | F151: 2125861 | G151: 2823.65 | H151: 563341 | I151: 0 | J151: 0 | K151: 0 | L151: 0 | M151: 0 | N151: 0 | O151: 0 | P151: 0 | Q151: 1229.39 | R151: 269927 | S151: =SUM(S152,S155) -> 15635.57 | T151: =SUM(T152,T155) -> 2959129
C152: 立木地 | D152: 総 数 | E152: 11038.01 | F152: 2125861 | G152: 2690.27 | H152: 563341 | I152: 0 | J152: 0 | K152: 0 | L152: 0 | M152: 0 | N152: 0 | O152: 0 | P152: 0 | Q152: 1192.27 | R152: 269927 | S152: =SUM(S153:S154) -> 14920.55 | T152: =SUM(T153:T154) -> 2959129
D153: 人工林 | E153: 5240.23 | F153: 1374038 | G153: 1657.74 | H153: 428132 | J153: 0 | L153: 0 | N153: 0 | P153: 0 | Q153: 906.49 | R153: 235093 | S153: =E153+G153+I153+K153+M153+O153+Q153 -> 7804.46 | T153: 2037263
D154: 天然林 | E154: 5797.78 | F154: 751823 | G154: 1032.53 | H154: 135209 | J154: 0 | L154: 0 | N154: 0 | P154: 0 | Q154: 285.78 | R154: 34834 | S154: 7116.09 | T154: 921866
C155: その他 | E155: 544.52 | F155: 0 | G155: 133.38 | H155: 0 | J155: 0 | L155: 0 | N155: 0 | P155: 0 | Q155: 37.12 | R155: 0 | S155: 715.02 | T155: 0
B156: 南信州計 | C156: 総 数 | E156: 118702.63 | F156: 22715080 | G156: 21248.37 | H156: 3703861 | I156: 0 | J156: 0 | K156: 2622.68 | L156: 521901 | M156: 0 | N156: 0 | O156: 0 | P156: 0 | Q156: 46040.85 | R156: 10242179 | S156: =SUM(S157,S160) -> 188614.53 | T156: =SUM(T157,T160) -> 37183021
C157: 立木地 | D157: 総 数 | E157: 115208.65 | F157: 22713796 | G157: 20356.21 | H157: 3703861 | I157: 0 | J157: 0 | K157: 2571.79 | L157: 521901 | M157: 0 | N157: 0 | O157: 0 | P157: 0 | Q157: 45054.41 | R157: 10240895 | S157: =SUM(S158:S159) -> 183191.06 | T157: =SUM(T158:T159) -> 37180453
D158: 人工林 | E158: 55764.89 | F158: 14926922 | G158: 9768.17 | H158: 2260458 | I158: 0 | J158: 0 | K158: 1037.68 | L158: 308182 | M158: 0 | N158: 0 | O158: 0 | P158: 0 | Q158: 28431.68 | R158: 8011958 | S158: =E158+G158+I158+K158+M158+O158+Q158 -> 95002.42 | T158: 25507520
D159: 天然林 | E159: 59443.76 | F159: 7786874 | G159: 10588.04 | H159: 1443403 | I159: 0 | J159: 0 | K159: 1534.11 | L159: 213719 | M159: 0 | N159: 0 | O159: 0 | P159: 0 | Q159: 16622.73 | R159: 2228937 | S159: 88188.64 | T159: 11672933
C160: その他 | E160: 3493.98 | F160: 1284 | G160: 892.16 | H160: 0 | I160: 0 | J160: 0 | K160: 50.89 | L160: 0 | M160: 0 | N160: 0 | O160: 0 | P160: 0 | Q160: 986.44 | R160: 1284 | S160: 5423.47 | T160: 2568
A161: 計画区計 | C161: 総 数 | E161: 158845.21 | F161: 31023808 | G161: 54476.08 | H161: 11032248 | I161: 7025.28 | J161: 1441336 | K161: 7722.05 | L161: 1417333 | M161: 118.01 | N161: 29110 | O161: 0 | P161: 0 | Q161: 104139.59 | R161: 22767026 | S161: =SUM(S162,S165) -> 332326.22 | T161: =SUM(T162,T165) -> 67710861
C162: 立木地 | D162: 総 数 | E162: 154294.92 | F162: 31021303 | G162: 52672.75 | H162: 11031241 | I162: 6713.88 | J162: 1441336 | K162: 6808.29 | L162: 1417333 | M162: 117.36 | N162: 29110 | O162: 0 | P162: 0 | Q162: 101789.37 | R162: 22764750 | S162: =SUM(S163:S164) -> 322396.57 | T162: =SUM(T163:T164) -> 67705073
D163: 人工林 | E163: 81196.31 | F163: 21201217 | G163: 30103.73 | H163: 7565586 | I163: 3419.97 | J163: 951725 | K163: 3263.2 | L163: 895431 | M163: 48.46 | N163: 13968 | O163: 0 | P163: 0 | Q163: 64906.74 | R163: 17309314 | S163: =E163+G163+I163+K163+M163+O163+Q163 -> 182938.41 | T163: 47937241
D164: 天然林 | E164: 73098.61 | F164: 9820086 | G164: 22569.02 | H164: 3465655 | I164: 3293.91 | J164: 489611 | K164: 3545.09 | L164: 521902 | M164: 68.9 | N164: 15142 | O164: 0 | P164: 0 | Q164: 36882.63 | R164: 5455436 | S164: 139458.16 | T164: 19767832
C165: その他 | E165: 4550.29 | F165: 2505 | G165: 1803.33 | H165: 1007 | I165: 311.4 | J165: 0 | K165: 913.76 | L165: 0 | M165: 0.65 | N165: 0 | O165: 0 | P165: 0 | Q165: 2350.22 | R165: 2276 | S165: 9929.65 | T165: 5788

Sheet 木曽谷
A1: 第10-1表 市町村別・公益的機能別施業森林等区分別ゾーニング別・資源表
R2: （単位 面積：ha 蓄積：m3）
A3: 地域振興局 | B3: 市町村名 | C3: 区 分 | E3: 公益的機能別施業森林等区分別
E4: 水かん | G4: 山災/土壌 | I4: 快適環境 | K4: 保健 | M4: 文化 | O4: 独自 | Q4: 木材 | S4: 総数
E5: 面積 | F5: 蓄積 | G5: 面積 | H5: 蓄積 | I5: 面積 | J5: 蓄積 | K5: 面積 | L5: 蓄積 | M5: 面積 | N5: 蓄積 | O5: 面積 | P5: 蓄積 | Q5: 面積 | R5: 蓄積 | S5: 面積 | T5: 蓄積
A6: 木曽 | B6: 上松町 | C6: 総 数 | E6: 2227.72 | F6: 381278 | G6: 2882.74 | H6: 483684 | I6: 0 | J6: 0 | K6: 32.08 | L6: 4968 | M6: 2.13 | N6: 573 | O6: 0 | P6: 0 | Q6: 4922.49 | R6: 834302 | S6: =SUM(S7,S10) -> 10067.16 | T6: =SUM(T7,T10) -> 1704805
C7: 立木地 | D7: 総 数 | E7: 2222 | F7: 381278 | G7: 2852.65 | H7: 483684 | I7: 0 | J7: 0 | K7: 30.5 | L7: 4968 | M7: 2.13 | N7: 573 | O7: 0 | P7: 0 | Q7: 4887.16 | R7: 834302 | S7: =SUM(S8:S9) -> 9994.44 | T7: =SUM(T8:T9) -> 1704805
D8: 人工林 | E8: 764.61 | F8: 183980 | G8: 907.78 | H8: 232510 | J8: 0 | K8: 9.89 | L8: 2599 | M8: 0.79 | N8: 299 | P8: 0 | Q8: 1624.03 | R8: 404900 | S8: =E8+G8+I8+K8+M8+O8+Q8 -> 3307.1 | T8: 824288
D9: 天然林 | E9: 1457.39 | F9: 197298 | G9: 1944.87 | H9: 251174 | J9: 0 | K9: 20.61 | L9: 2369 | M9: 1.34 | N9: 274 | P9: 0 | Q9: 3263.13 | R9: 429402 | S9: 6687.34 | T9: 880517
C10: その他 | E10: 5.72 | F10: 0 | G10: 30.09 | H10: 0 | J10: 0 | K10: 1.58 | L10: 0 | N10: 0 | P10: 0 | Q10: 35.33 | R10: 0 | S10: 72.72 | T10: 0
B11: 南木曽町 | C11: 総 数 | E11: 1029.7 | F11: 215107 | G11: 5551.59 | H11: 1113113 | I11: 0 | J11: 0 | K11: 0 | L11: 0 | M11: 0 | N11: 0 | O11: 0 | P11: 0 | Q11: 3566.86 | R11: 732132 | S11: =SUM(S12,S15) -> 10148.15 | T11: =SUM(T12,T15) -> 2060352
C12: 立木地 | D12: 総 数 | E12: 1014.88 | F12: 215107 | G12: 5459.17 | H12: 1113113 | I12: 0 | J12: 0 | K12: 0 | L12: 0 | M12: 0 | N12: 0 | O12: 0 | P12: 0 | Q12: 3522.51 | R12: 732132 | S12: =SUM(S13:S14) -> 9996.56 | T12: =SUM(T13:T14) -> 2060352
D13: 人工林 | E13: 577.46 | F13: 161457 | G13: 2863.6 | H13: 773301 | J13: 0 | L13: 0 | N13: 0 | P13: 0 | Q13: 1918.95 | R13: 518549 | S13: =E13+G13+I13+K13+M13+O13+Q13 -> 5360.01 | T13: 1453307
D14: 天然林 | E14: 437.42 | F14: 53650 | G14: 2595.57 | H14: 339812 | J14: 0 | L14: 0 | N14: 0 | P14: 0 | Q14: 1603.56 | R14: 213583 | S14: 4636.55 | T14: 607045
C15: その他 | E15: 14.82 | F15: 0 | G15: 92.42 | H15: 0 | J15: 0 | L15: 0 | N15: 0 | P15: 0 | Q15: 44.35 | R15: 0 | S15: 151.59 | T15: 0
B16: 木祖村 | C16: 総 数 | E16: 1470.48 | F16: 351067 | G16: 3934.88 | H16: 916341 | I16: 0 | J16: 0 | K16: 44.13 | L16: 6842 | M16: 0 | N16: 0 | O16: 0 | P16: 0 | Q16: 3984.73 | R16: 934929 | S16: =SUM(S17,S20) -> 9434.22 | T16: =SUM(T17,T20) -> 2209179
C17: 立木地 | D17: 総 数 | E17: 1465.82 | F17: 351067 | G17: 3919.98 | H17: 916341 | I17: 0 | J17: 0 | K17: 44.13 | L17: 6842 | M17: 0 | N17: 0 | O17: 0 | P17: 0 | Q17: 3969.97 | R17: 934929 | S17: =SUM(S18:S19) -> 9399.9 | T17: =SUM(T18:T19) -> 2209179
D18: 人工林 | E18: 1099.41 | F18: 298633 | G18: 2815.15 | H18: 757572 | J18: 0 | K18: 12.08 | L18: 2869 | N18: 0 | P18: 0 | Q18: 3005.24 | R18: 798089 | S18: =E18+G18+I18+K18+M18+O18+Q18 -> 6931.88 | T18: 1857163
D19: 天然林 | E19: 366.41 | F19: 52434 | G19: 1104.83 | H19: 158769 | J19: 0 | K19: 32.05 | L19: 3973 | N19: 0 | P19: 0 | Q19: 964.73 | R19: 136840 | S19: 2468.02 | T19: 352016
C20: その他 | E20: 4.66 | F20: 0 | G20: 14.9 | H20: 0 | J20: 0 | L20: 0 | N20: 0 | P20: 0 | Q20: 14.76 | R20: 0 | S20: 34.32 | T20: 0
B21: 王滝村 | C21: 総 数 | E21: 166.54 | F21: 32313 | G21: 2277.75 | H21: 416934 | I21: 0 | J21: 0 | K21: 422.43 | L21: 69094 | M21: 0 | N21: 0 | O21: 7.86 | P21: 1008 | Q21: 3682.56 | R21: 683834 | S21: =SUM(S22,S25) -> 6557.14 | T21: =SUM(T22,T25) -> 1203183
C22: 立木地 | D22: 総 数 | E22: 166.29 | F22: 32313 | G22: 2268.08 | H22: 416934 | I22: 0 | J22: 0 | K22: 421.64 | L22: 69094 | M22: 0 | N22: 0 | O22: 7.86 | P22: 1008 | Q22: 3669.13 | R22: 683834 | S22: =SUM(S23:S24) -> 6533 | T22: =SUM(T23:T24) -> 1203183
D23: 人工林 | E23: 97.14 | F23: 23940 | G23: 967.3 | H23: 246231 | J23: 0 | K23: 122.31 | L23: 34097 | N23: 0 | P23: 0 | Q23: 1616 | R23: 416671 | S23: =E23+G23+I23+K23+M23+O23+Q23 -> 2802.75 | T23: 720939
D24: 天然林 | E24: 69.15 | F24: 8373 | G24: 1300.78 | H24: 170703 | J24: 0 | K24: 299.33 | L24: 34997 | N24: 0 | O24: 7.86 | P24: 1008 | Q24: 2053.13 | R24: 267163 | S24: 3730.25 | T24: 482244
C25: その他 | E25: 0.25 | F25: 0 | G25: 9.67 | H25: 0 | J25: 0 | K25: 0.79 | L25: 0 | N25: 0 | P25: 0 | Q25: 13.43 | R25: 0 | S25: 24.14 | T25: 0
B26: 大桑村 | C26: 総 数 | E26: 1305.41 | F26: 237325 | G26: 3575.63 | H26: 675999 | I26: 0 | J26: 0 | K26: 173.09 | L26: 32429 | M26: 35.46 | N26: 8561 | O26: 0 | P26: 0 | Q26: 1135.11 | R26: 221857 | S26: =SUM(S27,S30) -> 6224.7 | T26: =SUM(T27,T30) -> 1176171
C27: 立木地 | D27: 総 数 | E27: 1273.83 | F27: 237325 | G27: 3535.8 | H27: 675999 | I27: 0 | J27: 0 | K27: 168.61 | L27: 32429 | M27: 35.41 | N27: 8561 | O27: 0 | P27: 0 | Q27: 1114.2 | R27: 221857 | S27: =SUM(S28:S29) -> 6127.85 | T27: =SUM(T28:T29) -> 1176171
D28: 人工林 | E28: 921.07 | F28: 197580 | G28: 1933.83 | H28: 473296 | J28: 0 | K28: 97.64 | L28: 22614 | M28: 21.01 | N28: 6414 | P28: 0 | Q28: 619.62 | R28: 154988 | S28: =E28+G28+I28+K28+M28+O28+Q28 -> 3593.17 | T28: 854892
D29: 天然林 | E29: 352.76 | F29: 39745 | G29: 1601.97 | H29: 202703 | J29: 0 | K29: 70.97 | L29: 9815 | M29: 14.4 | N29: 2147 | P29: 0 | Q29: 494.58 | R29: 66869 | S29: 2534.68 | T29: 321279
C30: その他 | E30: 31.58 | F30: 0 | G30: 39.83 | H30: 0 | J30: 0 | K30: 4.48 | L30: 0 | M30: 0.05 | N30: 0 | P30: 0 | Q30: 20.91 | R30: 0 | S30: 96.85 | T30: 0
B31: 木曽町 | C31: 総 数 | E31: 4782.68 | F31: 826411 | G31: 23087.64 | H31: 4604582 | I31: 0 | J31: 0 | K31: 18.63 | L31: 4228 | M31: 6.25 | N31: 1550 | O31: 0 | P31: 0 | Q31: 24375.32 | R31: 4846767 | S31: =SUM(S32,S35) -> 52270.52 | T31: =SUM(T32,T35) -> 10283538
C32: 立木地 | D32: 総 数 | E32: 4768.73 | F32: 826411 | G32: 22939.66 | H32: 4604577 | I32: 0 | J32: 0 | K32: 18.63 | L32: 4228 | M32: 6.25 | N32: 1550 | O32: 0 | P32: 0 | Q32: 24224.17 | R32: 4846762 | S32: =SUM(S33:S34) -> 51957.44 | T32: =SUM(T33:T34) -> 10283528
D33: 人工林 | E33: 1831.06 | F33: 476008 | G33: 11273.07 | H33: 2960664 | J33: 0 | K33: 8.67 | L33: 2072 | M33: 4.08 | N33: 1289 | P33: 0 | Q33: 11795.35 | R33: 3094369 | S33: =E33+G33+I33+K33+M33+O33+Q33 -> 24912.23 | T33: 6534402
D34: 天然林 | E34: 2937.67 | F34: 350403 | G34: 11666.59 | H34: 1643913 | J34: 0 | K34: 9.96 | L34: 2156 | M34: 2.17 | N34: 261 | P34: 0 | Q34: 12428.82 | R34: 1752393 | S34: 27045.21 | T34: 3749126
C35: その他 | E35: 13.95 | F35: 0 | G35: 147.98 | H35: 5 | J35: 0 | L35: 0 | N35: 0 | P35: 0 | Q35: 151.15 | R35: 5 | S35: 313.08 | T35: 10
B36: 木曽計 | C36: 総 数 | E36: 10982.53 | F36: 2043501 | G36: 41310.23 | H36: 8210653 | I36: 0 | J36: 0 | K36: 690.36 | L36: 117561 | M36: 43.84 | N36: 10684 | O36: 7.86 | P36: 1008 | Q36: 41667.07 | R36: 8253821 | S36: =SUM(S37,S40) -> 94701.89 | T36: =SUM(T37,T40) -> 18637228
C37: 立木地 | D37: 総 数 | E37: 10911.55 | F37: 2043501 | G37: 40975.34 | H37: 8210648 | I37: 0 | J37: 0 | K37: 683.51 | L37: 117561 | M37: 43.79 | N37: 10684 | O37: 7.86 | P37: 1008 | Q37: 41387.14 | R37: 8253816 | S37: =SUM(S38:S39) -> 94009.19 | T37: =SUM(T38:T39) -> 18637218
D38: 人工林 | E38: 5290.75 | F38: 1341598 | G38: 20760.73 | H38: 5443574 | I38: 0 | J38: 0 | K38: 250.59 | L38: 64251 | M38: 25.88 | N38: 8002 | O38: 0 | P38: 0 | Q38: 20579.19 | R38: 5387566 | S38: =E38+G38+I38+K38+M38+O38+Q38 -> 46907.14 | T38: 12244991
D39: 天然林 | E39: 5620.8 | F39: 701903 | G39: 20214.61 | H39: 2767074 | I39: 0 | J39: 0 | K39: 432.92 | L39: 53310 | M39: 17.91 | N39: 2682 | O39: 7.86 | P39: 1008 | Q39: 20807.95 | R39: 2866250 | S39: 47102.05 | T39: 6392227
C40: その他 | E40: 70.98 | F40: 0 | G40: 334.89 | H40: 5 | I40: 0 | J40: 0 | K40: 6.85 | L40: 0 | M40: 0.05 | N40: 0 | O40: 0 | P40: 0 | Q40: 279.93 | R40: 5 | S40: 692.7 | T40: 10
A41: 計画区計 | C41: 総 数 | E41: 10982.53 | F41: 2043501 | G41: 41310.23 | H41: 8210653 | I41: 0 | J41: 0 | K41: 690.36 | L41: 117561 | M41: 43.84 | N41: 10684 | O41: 7.86 | P41: 1008 | Q41: 41667.07 | R41: 8253821 | S41: =SUM(S42,S45) -> 94701.89 | T41: =SUM(T42,T45) -> 18637228
C42: 立木地 | D42: 総 数 | E42: 10911.55 | F42: 2043501 | G42: 40975.34 | H42: 8210648 | I42: 0 | J42: 0 | K42: 683.51 | L42: 117561 | M42: 43.79 | N42: 10684 | O42: 7.86 | P42: 1008 | Q42: 41387.14 | R42: 8253816 | S42: =SUM(S43:S44) -> 94009.19 | T42: =SUM(T43:T44) -> 18637218
D43: 人工林 | E43: 5290.75 | F43: 1341598 | G43: 20760.73 | H43: 5443574 | I43: 0 | J43: 0 | K43: 250.59 | L43: 64251 | M43: 25.88 | N43: 8002 | O43: 0 | P43: 0 | Q43: 20579.19 | R43: 5387566 | S43: =E43+G43+I43+K43+M43+O43+Q43 -> 46907.14 | T43: 12244991
D44: 天然林 | E44: 5620.8 | F44: 701903 | G44: 20214.61 | H44: 2767074 | I44: 0 | J44: 0 | K44: 432.92 | L44: 53310 | M44: 17.91 | N44: 2682 | O44: 7.86 | P44: 1008 | Q44: 20807.95 | R44: 2866250 | S44: 47102.05 | T44: 6392227
C45: その他 | E45: 70.98 | F45: 0 | G45: 334.89 | H45: 5 | I45: 0 | J45: 0 | K45: 6.85 | L45: 0 | M45: 0.05 | N45: 0 | O45: 0 | P45: 0 | Q45: 279.93 | R45: 5 | S45: 692.7 | T45: 10

Sheet 中部山岳
A1: 第10-1表 市町村別・公益的機能別施業森林等区分別ゾーニング別・資源表
R2: （単位 面積：ha 蓄積：m3）
A3: 地域振興局 | B3: 市町村名 | C3: 区 分 | E3: 公益的機能別施業森林等区分別
E4: 水かん | G4: 山災/土壌 | I4: 快適環境 | K4: 保健 | M4: 文化 | O4: 独自 | Q4: 木材 | S4: 総数
E5: 面積 | F5: 蓄積 | G5: 面積 | H5: 蓄積 | I5: 面積 | J5: 蓄積 | K5: 面積 | L5: 蓄積 | M5: 面積 | N5: 蓄積 | O5: 面積 | P5: 蓄積 | Q5: 面積 | R5: 蓄積 | S5: 面積 | T5: 蓄積
A6: 松本 | B6: 松本市 | C6: 総 数 | E6: 21455.74 | F6: 3635441 | G6: 9786.04 | H6: 1663516 | I6: 0 | J6: 0 | K6: 2444.8 | L6: 360299 | M6: 81.41 | N6: 15085 | O6: 0 | P6: 0 | Q6: 19990.2 | R6: 3730479 | S6: =SUM(S7,S10) -> 53758.19 | T6: =SUM(T7,T10) -> 9404820
C7: 立木地 | D7: 総 数 | E7: 21022.05 | F7: 3635441 | G7: 9510.83 | H7: 1663516 | I7: 0 | J7: 0 | K7: 2328.86 | L7: 360299 | M7: 80.62 | N7: 15045 | O7: 0 | P7: 0 | Q7: 19555.09 | R7: 3730479 | S7: =SUM(S8:S9) -> 52497.45 | T7: =SUM(T8:T9) -> 9404780
D8: 人工林 | E8: 10878.99 | F8: 2403774 | G8: 4532.44 | H8: 1013481 | J8: 0 | K8: 831.02 | L8: 183945 | M8: 32.2 | N8: 7957 | P8: 0 | Q8: 12115.02 | R8: 2773509 | S8: =E8+G8+I8+K8+M8+O8+Q8 -> 28389.67 | T8: 6382666
D9: 天然林 | E9: 10143.06 | F9: 1231667 | G9: 4978.39 | H9: 650035 | J9: 0 | K9: 1497.84 | L9: 176354 | M9: 48.42 | N9: 7088 | P9: 0 | Q9: 7440.07 | R9: 956970 | S9: 24107.78 | T9: 3022114
C10: その他 | E10: 433.69 | F10: 0 | G10: 275.21 | H10: 0 | J10: 0 | K10: 115.94 | L10: 0 | M10: 0.79 | N10: 40 | P10: 0 | Q10: 435.11 | R10: 0 | S10: 1260.74 | T10: 40
B11: 塩尻市 | C11: 総 数 | E11: 10423.03 | F11: 2020435 | G11: 606.03 | H11: 113754 | I11: 3909.44 | J11: 764623 | K11: 64.99 | L11: 11534 | M11: 0 | N11: 0 | O11: 0 | P11: 0 | Q11: 12777.77 | R11: 2920566 | S11: =SUM(S12,S15) -> 27781.26 | T11: =SUM(T12,T15) -> 5830912
C12: 立木地 | D12: 総 数 | E12: 10245.9 | F12: 2020435 | G12: 603.97 | H12: 113754 | I12: 3844.56 | J12: 764623 | K12: 63.31 | L12: 11534 | M12: 0 | N12: 0 | O12: 0 | P12: 0 | Q12: 12695.45 | R12: 2920566 | S12: =SUM(S13:S14) -> 27453.19 | T12: =SUM(T13:T14) -> 5830912
D13: 人工林 | E13: 5523.14 | F13: 1325924 | G13: 513.62 | H13: 101551 | I13: 1819.87 | J13: 497315 | K13: 54.6 | L13: 10554 | N13: 0 | P13: 0 | Q13: 9481.52 | R13: 2315998 | S13: =E13+G13+I13+K13+M13+O13+Q13 -> 17392.75 | T13: 4251342
D14: 天然林 | E14: 4722.76 | F14: 694511 | G14: 90.35 | H14: 12203 | I14: 2024.69 | J14: 267308 | K14: 8.71 | L14: 980 | N14: 0 | P14: 0 | Q14: 3213.93 | R14: 604568 | S14: 10060.44 | T14: 1579570
C15: その他 | E15: 177.13 | F15: 0 | G15: 2.06 | H15: 0 | I15: 64.88 | J15: 0 | K15: 1.68 | L15: 0 | N15: 0 | P15: 0 | Q15: 82.32 | R15: 0 | S15: 328.07 | T15: 0
B16: 安曇野市 | C16: 総 数 | E16: 6102.45 | F16: 1131173 | G16: 3433.01 | H16: 538287 | I16: 0 | J16: 0 | K16: 364.94 | L16: 55600 | M16: 0 | N16: 0 | O16: 0 | P16: 0 | Q16: 4657.22 | R16: 948937 | S16: =SUM(S17,S20) -> 14557.62 | T16: =SUM(T17,T20) -> 2673997
C17: 立木地 | D17: 総 数 | E17: 5990.71 | F17: 1131173 | G17: 3335.67 | H17: 538287 | I17: 0 | J17: 0 | K17: 356.73 | L17: 55600 | M17: 0 | N17: 0 | O17: 0 | P17: 0 | Q17: 4576.36 | R17: 948937 | S17: =SUM(S18:S19) -> 14259.47 | T17: =SUM(T18:T19) -> 2673997
D18: 人工林 | E18: 3060.57 | F18: 713807 | G18: 1298.51 | H18: 283146 | J18: 0 | K18: 124.94 | L18: 27782 | N18: 0 | P18: 0 | Q18: 2197.54 | R18: 548126 | S18: =E18+G18+I18+K18+M18+O18+Q18 -> 6681.56 | T18: 1572861
D19: 天然林 | E19: 2930.14 | F19: 417366 | G19: 2037.16 | H19: 255141 | J19: 0 | K19: 231.79 | L19: 27818 | N19: 0 | P19: 0 | Q19: 2378.82 | R19: 400811 | S19: 7577.91 | T19: 1101136
C20: その他 | E20: 111.74 | F20: 0 | G20: 97.34 | H20: 0 | J20: 0 | K20: 8.21 | L20: 0 | N20: 0 | P20: 0 | Q20: 80.86 | R20: 0 | S20: 298.15 | T20: 0
B21: 麻績村 | C21: 総 数 | E21: 1814.21 | F21: 381488 | G21: 808.87 | H21: 149832 | I21: 0 | J21: 0 | K21: 294.49 | L21: 67326 | M21: 23.38 | N21: 4743 | O21: 0 | P21: 0 | Q21: 1549.57 | R21: 379742 | S21: =SUM(S22,S25) -> 4490.52 | T21: =SUM(T22,T25) -> 983131
C22: 立木地 | D22: 総 数 | E22: 1790.78 | F22: 381488 | G22: 785.76 | H22: 149832 | I22: 0 | J22: 0 | K22: 292.31 | L22: 67326 | M22: 22.13 | N22: 4743 | O22: 0 | P22: 0 | Q22: 1537.64 | R22: 379742 | S22: =SUM(S23:S24) -> 4428.62 | T22: =SUM(T23:T24) -> 983131
D23: 人工林 | E23: 919.07 | F23: 252366 | G23: 329.08 | H23: 82037 | J23: 0 | K23: 203.13 | L23: 56384 | M23: 11.93 | N23: 2612 | P23: 0 | Q23: 918.96 | R23: 257064 | S23: =E23+G23+I23+K23+M23+O23+Q23 -> 2382.17 | T23: 650463
D24: 天然林 | E24: 871.71 | F24: 129122 | G24: 456.68 | H24: 67795 | J24: 0 | K24: 89.18 | L24: 10942 | M24: 10.2 | N24: 2131 | P24: 0 | Q24: 618.68 | R24: 122678 | S24: 2046.45 | T24: 332668
C25: その他 | E25: 23.43 | F25: 0 | G25: 23.11 | H25: 0 | J25: 0 | K25: 2.18 | L25: 0 | M25: 1.25 | N25: 0 | P25: 0 | Q25: 11.93 | R25: 0 | S25: 61.9 | T25: 0
B26: 生坂村 | C26: 総 数 | E26: 66.25 | F26: 7752 | G26: 1686.48 | H26: 217562 | I26: 0 | J26: 0 | K26: 5.67 | L26: 743 | M26: 0 | N26: 0 | O26: 0 | P26: 0 | Q26: 257.07 | R26: 60036 | S26: =SUM(S27,S30) -> 2015.47 | T26: =SUM(T27,T30) -> 286093
C27: 立木地 | D27: 総 数 | E27: 63.41 | F27: 7752 | G27: 1443.07 | H27: 217562 | I27: 0 | J27: 0 | K27: 5.67 | L27: 743 | M27: 0 | N27: 0 | O27: 0 | P27: 0 | Q27: 249.02 | R27: 60036 | S27: =SUM(S28:S29) -> 1761.17 | T27: =SUM(T28:T29) -> 286093
D28: 人工林 | E28: 7.05 | F28: 1622 | G28: 228.31 | H28: 71424 | J28: 0 | K28: 1.55 | L28: 331 | N28: 0 | P28: 0 | Q28: 132.25 | R28: 47284 | S28: =E28+G28+I28+K28+M28+O28+Q28 -> 369.16 | T28: 120661
D29: 天然林 | E29: 56.36 | F29: 6130 | G29: 1214.76 | H29: 146138 | J29: 0 | K29: 4.12 | L29: 412 | N29: 0 | P29: 0 | Q29: 116.77 | R29: 12752 | S29: 1392.01 | T29: 165432
C30: その他 | E30: 2.84 | F30: 0 | G30: 243.41 | H30: 0 | J30: 0 | L30: 0 | N30: 0 | P30: 0 | Q30: 8.05 | R30: 0 | S30: 254.3 | T30: 0
B31: 山形村 | C31: 総 数 | E31: 461.73 | F31: 117574 | G31: 15.78 | H31: 3775 | I31: 0 | J31: 0 | K31: 38.84 | L31: 11314 | M31: 0 | N31: 0 | O31: 0 | P31: 0 | Q31: 758.21 | R31: 199962 | S31: =SUM(S32,S35) -> 1274.56 | T31: =SUM(T32,T35) -> 332625
C32: 立木地 | D32: 総 数 | E32: 459.67 | F32: 117574 | G32: 14.86 | H32: 3775 | I32: 0 | J32: 0 | K32: 38.54 | L32: 11314 | M32: 0 | N32: 0 | O32: 0 | P32: 0 | Q32: 751.22 | R32: 199962 | S32: =SUM(S33:S34) -> 1264.29 | T32: =SUM(T33:T34) -> 332625
D33: 人工林 | E33: 375.78 | F33: 103341 | G33: 12.33 | H33: 3471 | J33: 0 | K33: 35.11 | L33: 10606 | N33: 0 | P33: 0 | Q33: 459.56 | R33: 138416 | S33: =E33+G33+I33+K33+M33+O33+Q33 -> 882.78 | T33: 255834
D34: 天然林 | E34: 83.89 | F34: 14233 | G34: 2.53 | H34: 304 | J34: 0 | K34: 3.43 | L34: 708 | N34: 0 | P34: 0 | Q34: 291.66 | R34: 61546 | S34: 381.51 | T34: 76791
C35: その他 | E35: 2.06 | F35: 0 | G35: 0.92 | H35: 0 | J35: 0 | K35: 0.3 | L35: 0 | N35: 0 | P35: 0 | Q35: 6.99 | R35: 0 | S35: 10.27 | T35: 0
B36: 朝日村 | C36: 総 数 | E36: 5142.96 | F36: 1036835 | G36: 24.51 | H36: 3600 | I36: 0 | J36: 0 | K36: 109.44 | L36: 22339 | M36: 0 | N36: 0 | O36: 0 | P36: 0 | Q36: 1374.64 | R36: 299300 | S36: =SUM(S37,S40) -> 6651.55 | T36: =SUM(T37,T40) -> 1362074
C37: 立木地 | D37: 総 数 | E37: 5095.72 | F37: 1036551 | G37: 23.12 | H37: 3600 | I37: 0 | J37: 0 | K37: 109.31 | L37: 22339 | M37: 0 | N37: 0 | O37: 0 | P37: 0 | Q37: 1369.6 | R37: 299300 | S37: =SUM(S38:S39) -> 6597.75 | T37: =SUM(T38:T39) -> 1361790
D38: 人工林 | E38: 3781.88 | F38: 862093 | G38: 9.15 | H38: 1806 | J38: 0 | K38: 77.06 | L38: 18446 | N38: 0 | P38: 0 | Q38: 788.93 | R38: 210785 | S38: =E38+G38+I38+K38+M38+O38+Q38 -> 4657.02 | T38: 1093130
D39: 天然林 | E39: 1313.84 | F39: 174458 | G39: 13.97 | H39: 1794 | J39: 0 | K39: 32.25 | L39: 3893 | N39: 0 | P39: 0 | Q39: 580.67 | R39: 88515 | S39: 1940.73 | T39: 268660
C40: その他 | E40: 47.24 | F40: 284 | G40: 1.39 | H40: 0 | J40: 0 | K40: 0.13 | L40: 0 | N40: 0 | P40: 0 | Q40: 5.04 | R40: 0 | S40: 53.8 | T40: 284
B41: 筑北村 | C41: 総 数 | E41: 3134.77 | F41: 511277 | G41: 2045.46 | H41: 288951 | I41: 0 | J41: 0 | K41: 0 | L41: 0 | M41: 0 | N41: 0 | O41: 0 | P41: 0 | Q41: 1332.57 | R41: 277328 | S41: =SUM(S42,S45) -> 6512.8 | T41: =SUM(T42,T45) -> 1077556
C42: 立木地 | D42: 総 数 | E42: 3061.85 | F42: 511277 | G42: 1810.25 | H42: 288951 | I42: 0 | J42: 0 | K42: 0 | L42: 0 | M42: 0 | N42: 0 | O42: 0 | P42: 0 | Q42: 1295.97 | R42: 277328 | S42: =SUM(S43:S44) -> 6168.07 | T42: =SUM(T43:T44) -> 1077556
D43: 人工林 | E43: 1235.67 | F43: 298645 | G43: 767.79 | H43: 157316 | J43: 0 | L43: 0 | N43: 0 | P43: 0 | Q43: 898.94 | R43: 223297 | S43: =E43+G43+I43+K43+M43+O43+Q43 -> 2902.4 | T43: 679258
D44: 天然林 | E44: 1826.18 | F44: 212632 | G44: 1042.46 | H44: 131635 | J44: 0 | L44: 0 | N44: 0 | P44: 0 | Q44: 397.03 | R44: 54031 | S44: 3265.67 | T44: 398298
C45: その他 | E45: 72.92 | F45: 0 | G45: 235.21 | H45: 0 | J45: 0 | L45: 0 | N45: 0 | P45: 0 | Q45: 36.6 | R45: 0 | S45: 344.73 | T45: 0
B46: 松本計 | C46: 総 数 | E46: 48601.14 | F46: 8841975 | G46: 18406.18 | H46: 2979277 | I46: 3909.44 | J46: 764623 | K46: 3323.17 | L46: 529155 | M46: 104.79 | N46: 19828 | O46: 0 | P46: 0 | Q46: 42697.25 | R46: 8816350 | S46: =SUM(S47,S50) -> 117041.97 | T46: =SUM(T47,T50) -> 21951208
C47: 立木地 | D47: 総 数 | E47: 47730.09 | F47: 8841691 | G47: 17527.53 | H47: 2979277 | I47: 3844.56 | J47: 764623 | K47: 3194.73 | L47: 529155 | M47: 102.75 | N47: 19788 | O47: 0 | P47: 0 | Q47: 42030.35 | R47: 8816350 | S47: =SUM(S48:S49) -> 114430.01 | T47: =SUM(T48:T49) -> 21950884
D48: 人工林 | E48: 25782.15 | F48: 5961572 | G48: 7691.23 | H48: 1714232 | I48: 1819.87 | J48: 497315 | K48: 1327.41 | L48: 308048 | M48: 44.13 | N48: 10569 | O48: 0 | P48: 0 | Q48: 26992.72 | R48: 6514479 | S48: =E48+G48+I48+K48+M48+O48+Q48 -> 63657.51 | T48: 15006215
D49: 天然林 | E49: 21947.94 | F49: 2880119 | G49: 9836.3 | H49: 1265045 | I49: 2024.69 | J49: 267308 | K49: 1867.32 | L49: 221107 | M49: 58.62 | N49: 9219 | O49: 0 | P49: 0 | Q49: 15037.63 | R49: 2301871 | S49: 50772.5 | T49: 6944669
C50: その他 | E50: 871.05 | F50: 284 | G50: 878.65 | H50: 0 | I50: 64.88 | J50: 0 | K50: 128.44 | L50: 0 | M50: 2.04 | N50: 40 | O50: 0 | P50: 0 | Q50: 666.9 | R50: 0 | S50: 2611.96 | T50: 324
A51: 北アルプス | B51: 大町市 | C51: 総 数 | E51: 15575.6 | F51: 2469687 | G51: 11449.99 | H51: 1796864 | I51: 43.55 | J51: 6060 | K51: 71.06 | L51: 13087 | M51: 591.56 | N51: 111709 | O51: 3.75 | P51: 952 | Q51: 10747.93 | R51: 1807386 | S51: =SUM(S52,S55) -> 38483.44 | T51: =SUM(T52,T55) -> 6205745
C52: 立木地 | D52: 総 数 | E52: 15490.7 | F52: 2469687 | G52: 11386.52 | H52: 1796864 | I52: 42.54 | J52: 6060 | K52: 69.85 | L52: 13087 | M52: 591.16 | N52: 111709 | O52: 3.75 | P52: 952 | Q52: 10683.91 | R52: 1807386 | S52: =SUM(S53:S54) -> 38268.43 | T52: =SUM(T53:T54) -> 6205745
D53: 人工林 | E53: 5894.27 | F53: 1412963 | G53: 4282.93 | H53: 1004265 | I53: 7.37 | J53: 1661 | K53: 30.53 | L53: 8161 | M53: 217.94 | N53: 68528 | O53: 3.35 | P53: 922 | Q53: 5050.38 | R53: 1167964 | S53: =E53+G53+I53+K53+M53+O53+Q53 -> 15486.77 | T53: 3664464
D54: 天然林 | E54: 9596.43 | F54: 1056724 | G54: 7103.59 | H54: 792599 | I54: 35.17 | J54: 4399 | K54: 39.32 | L54: 4926 | M54: 373.22 | N54: 43181 | O54: 0.4 | P54: 30 | Q54: 5633.53 | R54: 639422 | S54: 22781.66 | T54: 2541281
C55: その他 | E55: 84.9 | F55: 0 | G55: 63.47 | H55: 0 | I55: 1.01 | J55: 0 | K55: 1.21 | L55: 0 | M55: 0.4 | N55: 0 | P55: 0 | Q55: 64.02 | R55: 0 | S55: 215.01 | T55: 0
B56: 池田町 | C56: 総 数 | E56: 75.45 | F56: 12817 | G56: 1083.18 | H56: 180591 | I56: 0 | J56: 0 | K56: 60.59 | L56: 10525 | M56: 0 | N56: 0 | O56: 0 | P56: 0 | Q56: 1184.38 | R56: 195718 | S56: =SUM(S57,S60) -> 2403.6 | T56: =SUM(T57,T60) -> 399651
C57: 立木地 | D57: 総 数 | E57: 75.34 | F57: 12817 | G57: 1079.28 | H57: 180591 | I57: 0 | J57: 0 | K57: 60.48 | L57: 10525 | M57: 0 | N57: 0 | O57: 0 | P57: 0 | Q57: 1180.37 | R57: 195718 | S57: =SUM(S58:S59) -> 2395.47 | T57: =SUM(T58:T59) -> 399651
D58: 人工林 | E58: 40.1 | F58: 7579 | G58: 352.64 | H58: 91666 | J58: 0 | K58: 35.62 | L58: 6741 | N58: 0 | P58: 0 | Q58: 408.43 | R58: 100979 | S58: =E58+G58+I58+K58+M58+O58+Q58 -> 836.79 | T58: 206965
D59: 天然林 | E59: 35.24 | F59: 5238 | G59: 726.64 | H59: 88925 | J59: 0 | K59: 24.86 | L59: 3784 | N59: 0 | P59: 0 | Q59: 771.94 | R59: 94739 | S59: 1558.68 | T59: 192686
C60: その他 | E60: 0.11 | F60: 0 | G60: 3.9 | H60: 0 | J60: 0 | K60: 0.11 | L60: 0 | N60: 0 | P60: 0 | Q60: 4.01 | R60: 0 | S60: 8.13 | T60: 0
A61: 北アルプス | B61: 松川村 | C61: 総 数 | E61: 237.07 | F61: 43957 | G61: 539.73 | H61: 93272 | I61: 0 | J61: 0 | K61: 140.08 | L61: 29302 | M61: 0 | N61: 0 | O61: 0 | P61: 0 | Q61: 1687.25 | R61: 289717 | S61: =SUM(S62,S65) -> 2604.13 | T61: =SUM(T62,T65) -> 456248
C62: 立木地 | D62: 総 数 | E62: 232.68 | F62: 43957 | G62: 538.6 | H62: 93272 | I62: 0 | J62: 0 | K62: 138.28 | L62: 29302 | M62: 0 | N62: 0 | O62: 0 | P62: 0 | Q62: 1675.73 | R62: 289717 | S62: =SUM(S63:S64) -> 2585.29 | T62: =SUM(T63:T64) -> 456248
D63: 人工林 | E63: 127.79 | F63: 24621 | G63: 164 | H63: 38941 | J63: 0 | K63: 74.86 | L63: 18756 | N63: 0 | P63: 0 | Q63: 540.46 | R63: 113600 | S63: =E63+G63+I63+K63+M63+O63+Q63 -> 907.11 | T63: 195918
D64: 天然林 | E64: 104.89 | F64: 19336 | G64: 374.6 | H64: 54331 | J64: 0 | K64: 63.42 | L64: 10546 | N64: 0 | P64: 0 | Q64: 1135.27 | R64: 176117 | S64: 1678.18 | T64: 260330
C65: その他 | E65: 4.39 | F65: 0 | G65: 1.13 | H65: 0 | J65: 0 | K65: 1.8 | L65: 0 | N65: 0 | P65: 0 | Q65: 11.52 | R65: 0 | S65: 18.84 | T65: 0
B66: 白馬村 | C66: 総 数 | E66: 1460.56 | F66: 188398 | G66: 2855.28 | H66: 153372 | I66: 0 | J66: 0 | K66: 160.34 | L66: 35661 | M66: 0 | N66: 0 | O66: 0 | P66: 0 | Q66: 7697.48 | R66: 1152182 | S66: =SUM(S67,S70) -> 12173.66 | T66: =SUM(T67,T70) -> 1529613
C67: 立木地 | D67: 総 数 | E67: 1457.22 | F67: 188398 | G67: 1335.66 | H67: 153372 | I67: 0 | J67: 0 | K67: 159.69 | L67: 35661 | M67: 0 | N67: 0 | O67: 0 | P67: 0 | Q67: 7610.7 | R67: 1152182 | S67: =SUM(S68:S69) -> 10563.27 | T67: =SUM(T68:T69) -> 1529613
D68: 人工林 | E68: 390.12 | F68: 89411 | G68: 149.54 | H68: 40832 | J68: 0 | K68: 88.31 | L68: 28790 | N68: 0 | P68: 0 | Q68: 1989.29 | R68: 587983 | S68: =E68+G68+I68+K68+M68+O68+Q68 -> 2617.26 | T68: 747016
D69: 天然林 | E69: 1067.1 | F69: 98987 | G69: 1186.12 | H69: 112540 | J69: 0 | K69: 71.38 | L69: 6871 | N69: 0 | P69: 0 | Q69: 5621.41 | R69: 564199 | S69: 7946.01 | T69: 782597
C70: その他 | E70: 3.34 | F70: 0 | G70: 1519.62 | H70: 0 | J70: 0 | K70: 0.65 | L70: 0 | N70: 0 | P70: 0 | Q70: 86.78 | R70: 0 | S70: 1610.39 | T70: 0
B71: 小谷村 | C71: 総 数 | E71: 5047.99 | F71: 700416 | G71: 5236.15 | H71: 851215 | I71: 0 | J71: 0 | K71: 1852.76 | L71: 219159 | M71: 0 | N71: 0 | O71: 0 | P71: 0 | Q71: 12950.01 | R71: 2017290 | S71: =SUM(S72,S75) -> 25086.91 | T71: =SUM(T72,T75) -> 3788080
C72: 立木地 | D72: 総 数 | E72: 4802.2 | F72: 675945 | G72: 5090.57 | H72: 851215 | I72: 0 | J72: 0 | K72: 1644.97 | L72: 194688 | M72: 0 | N72: 0 | O72: 0 | P72: 0 | Q72: 12544.48 | R72: 1992819 | S72: =SUM(S73:S74) -> 24082.22 | T72: =SUM(T73:T74) -> 3714667
D73: 人工林 | E73: 932.39 | F73: 282441 | G73: 1246.5 | H73: 464243 | J73: 0 | K73: 121.83 | L73: 37145 | N73: 0 | P73: 0 | Q73: 2850.89 | R73: 1010149 | S73: =E73+G73+I73+K73+M73+O73+Q73 -> 5151.61 | T73: =F73+H73+J73+L73+N73+P73+R73 -> 1793978
D74: 天然林 | E74: 3869.81 | F74: 393504 | G74: 3844.07 | H74: 386972 | J74: 0 | K74: 1523.14 | L74: 157543 | N74: 0 | P74: 0 | Q74: 9693.59 | R74: 982670 | S74: =E74+G74+I74+K74+M74+O74+Q74 -> 18930.61 | T74: 1920689
C75: その他 | E75: 245.79 | F75: 24471 | G75: 145.58 | H75: 0 | J75: 0 | K75: 207.79 | L75: 24471 | N75: 0 | P75: 0 | Q75: 405.53 | R75: 24471 | S75: 1004.69 | T75: 73413
B76: 北アルプス計 | C76: 総 数 | E76: 22396.67 | F76: 3415275 | G76: 21164.33 | H76: 3075314 | I76: 43.55 | J76: 6060 | K76: 2284.83 | L76: 307734 | M76: 591.56 | N76: 111709 | O76: 3.75 | P76: 952 | Q76: 34267.05 | R76: 5462293 | S76: =SUM(S77,S80) -> 80751.74 | T76: =SUM(T77,T80) -> 12379337
C77: 立木地 | D77: 総 数 | E77: 22058.14 | F77: 3390804 | G77: 19430.63 | H77: 3075314 | I77: 42.54 | J77: 6060 | K77: 2073.27 | L77: 283263 | M77: 591.16 | N77: 111709 | O77: 3.75 | P77: 952 | Q77: 33695.19 | R77: 5437822 | S77: =SUM(S78:S79) -> 77894.68 | T77: =SUM(T78:T79) -> 12305924
D78: 人工林 | E78: 7384.67 | F78: 1817015 | G78: 6195.61 | H78: 1639947 | I78: 7.37 | J78: 1661 | K78: 351.15 | L78: 99593 | M78: 217.94 | N78: 68528 | O78: 3.35 | P78: 922 | Q78: 10839.45 | R78: 2980675 | S78: =E78+G78+I78+K78+M78+O78+Q78 -> 24999.54 | T78: =F78+H78+J78+L78+N78+P78+R78 -> 6608341
D79: 天然林 | E79: 14673.47 | F79: 1573789 | G79: 13235.02 | H79: 1435367 | I79: 35.17 | J79: 4399 | K79: 1722.12 | L79: 183670 | M79: 373.22 | N79: 43181 | O79: 0.4 | P79: 30 | Q79: 22855.74 | R79: 2457147 | S79: 52895.14 | T79: 5697583
C80: その他 | E80: 338.53 | F80: 24471 | G80: 1733.7 | H80: 0 | I80: 1.01 | J80: 0 | K80: 211.56 | L80: 24471 | M80: 0.4 | N80: 0 | O80: 0 | P80: 0 | Q80: 571.86 | R80: 24471 | S80: 2857.06 | T80: 73413
A81: 計画区計 | C81: 総 数 | E81: 70997.81 | F81: 12257250 | G81: 39570.51 | H81: 6054591 | I81: 3952.99 | J81: 770683 | K81: 5608 | L81: 836889 | M81: 696.35 | N81: 131537 | O81: 3.75 | P81: 952 | Q81: 76964.3 | R81: 14278643 | S81: =SUM(S82,S85) -> 197793.71 | T81: =SUM(T82,T85) -> 34330545
C82: 立木地 | D82: 総 数 | E82: 69788.23 | F82: 12232495 | G82: 36958.16 | H82: 6054591 | I82: 3887.1 | J82: 770683 | K82: 5268 | L82: 812418 | M82: 693.91 | N82: 131497 | O82: 3.75 | P82: 952 | Q82: 75725.54 | R82: 14254172 | S82: =SUM(S83:S84) -> 192324.69 | T82: =SUM(T83:T84) -> 34256808
D83: 人工林 | E83: 33166.82 | F83: 7778587 | G83: 13886.84 | H83: 3354179 | I83: 1827.24 | J83: 498976 | K83: 1678.56 | L83: 407641 | M83: 262.07 | N83: 79097 | O83: 3.35 | P83: 922 | Q83: 37832.17 | R83: 9495154 | S83: =E83+G83+I83+K83+M83+O83+Q83 -> 88657.05 | T83: =F83+H83+J83+L83+N83+P83+R83 -> 21614556
D84: 天然林 | E84: 36621.41 | F84: 4453908 | G84: 23071.32 | H84: 2700412 | I84: 2059.86 | J84: 271707 | K84: 3589.44 | L84: 404777 | M84: 431.84 | N84: 52400 | O84: 0.4 | P84: 30 | Q84: 37893.37 | R84: 4759018 | S84: 103667.64 | T84: 12642252
C85: その他 | E85: 1209.58 | F85: 24755 | G85: 2612.35 | H85: 0 | I85: 65.89 | J85: 0 | K85: 340 | L85: 24471 | M85: 2.44 | N85: 40 | O85: 0 | P85: 0 | Q85: 1238.76 | R85: 24471 | S85: 5469.02 | T85: 73737

Sheet 千曲川下流
A1: 第10-1表 市町村別・公益的機能別施業森林等区分別ゾーニング別・資源表
R2: （単位 面積：ha 蓄積：m3）
A3: 地域振興局 | B3: 市町村名 | C3: 区 分 | E3: 公益的機能別施業森林等区分別
E4: 水かん | G4: 山災/土壌 | I4: 快適環境 | K4: 保健 | M4: 文化 | O4: 独自 | Q4: 木材 | S4: 総数
E5: 面積 | F5: 蓄積 | G5: 面積 | H5: 蓄積 | I5: 面積 | J5: 蓄積 | K5: 面積 | L5: 蓄積 | M5: 面積 | N5: 蓄積 | O5: 面積 | P5: 蓄積 | Q5: 面積 | R5: 蓄積 | S5: 面積 | T5: 蓄積
A6: 長野 | B6: 長野市 | C6: 総 数 | E6: 41451.08 | F6: 9637182 | G6: 3668.92 | H6: 779118 | I6: 0 | J6: 0 | K6: 7.04 | L6: 1213 | M6: 0 | N6: 0 | O6: 0 | P6: 0 | Q6: 10937.03 | R6: 3287717 | S6: =SUM(S7,S10) -> 56064.07 | T6: =SUM(T7,T10) -> 13705230
C7: 立木地 | D7: 総 数 | E7: 40039.82 | F7: 9637182 | G7: 3489.48 | H7: 779118 | I7: 0 | J7: 0 | K7: 7.04 | L7: 1213 | M7: 0 | N7: 0 | O7: 0 | P7: 0 | Q7: 10688.5 | R7: 3287717 | S7: =SUM(S8:S9) -> 54224.84 | T7: =SUM(T8:T9) -> 13705230
D8: 人工林 | E8: 18410.78 | F8: 6951377 | G8: 1441.13 | H8: 537504 | J8: 0 | K8: 1.73 | L8: 517 | N8: 0 | P8: 0 | Q8: 8678.97 | R8: 3034341 | S8: =E8+G8+I8+K8+M8+O8+Q8 -> 28532.61 | T8: 10523739
D9: 天然林 | E9: 21629.04 | F9: 2685805 | G9: 2048.35 | H9: 241614 | J9: 0 | K9: 5.31 | L9: 696 | N9: 0 | P9: 0 | Q9: 2009.53 | R9: 253376 | S9: 25692.23 | T9: 3181491
C10: その他 | E10: 1411.26 | F10: 0 | G10: 179.44 | H10: 0 | J10: 0 | L10: 0 | N10: 0 | P10: 0 | Q10: 248.53 | R10: 0 | S10: 1839.23 | T10: 0
B11: 須坂市 | C11: 総 数 | E11: 2048.03 | F11: 439830 | G11: 6016.12 | H11: 1640075 | I11: 0 | J11: 0 | K11: 399.07 | L11: 81726 | M11: 0 | N11: 0 | O11: 0 | P11: 0 | Q11: 622.38 | R11: 168989 | S11: =SUM(S12,S15) -> 9085.6 | T11: =SUM(T12,T15) -> 2330620
C12: 立木地 | D12: 総 数 | E12: 1920.27 | F12: 439830 | G12: 5714.05 | H12: 1638044 | I12: 0 | J12: 0 | K12: 381.91 | L12: 81726 | M12: 0 | N12: 0 | O12: 0 | P12: 0 | Q12: 601.58 | R12: 167059 | S12: =SUM(S13:S14) -> 8617.81 | T12: =SUM(T13:T14) -> 2326659
D13: 人工林 | E13: 1035.16 | F13: 332423 | G13: 3522.79 | H13: 1361137 | J13: 0 | K13: 170.83 | L13: 58729 | N13: 0 | P13: 0 | Q13: 368.89 | R13: 134961 | S13: =E13+G13+I13+K13+M13+O13+Q13 -> 5097.67 | T13: 1887250
D14: 天然林 | E14: 885.11 | F14: 107407 | G14: 2191.26 | H14: 276907 | J14: 0 | K14: 211.08 | L14: 22997 | N14: 0 | P14: 0 | Q14: 232.69 | R14: 32098 | S14: 3520.14 | T14: 439409
C15: その他 | E15: 127.76 | F15: 0 | G15: 302.07 | H15: 2031 | J15: 0 | K15: 17.16 | L15: 0 | N15: 0 | P15: 0 | Q15: 20.8 | R15: 1930 | S15: 467.79 | T15: 3961
B16: 千曲市 | C16: 総 数 | E16: 3002.99 | F16: 680941 | G16: 2601.16 | H16: 496759 | I16: 0 | J16: 0 | K16: 253.79 | L16: 62326 | M16: 0 | N16: 0 | O16: 0 | P16: 0 | Q16: 2647.44 | R16: 643347 | S16: =SUM(S17,S20) -> 8505.38 | T16: =SUM(T17,T20) -> 1883373
C17: 立木地 | D17: 総 数 | E17: 2953.04 | F17: 680941 | G17: 2518.22 | H17: 496759 | I17: 0 | J17: 0 | K17: 245.91 | L17: 62326 | M17: 0 | N17: 0 | O17: 0 | P17: 0 | Q17: 2586.47 | R17: 643347 | S17: =SUM(S18:S19) -> 8303.64 | T17: =SUM(T18:T19) -> 1883373
D18: 人工林 | E18: 1704.95 | F18: 505162 | G18: 830.62 | H18: 254449 | J18: 0 | K18: 182.4 | L18: 54373 | N18: 0 | P18: 0 | Q18: 1717.1 | R18: 517243 | S18: =E18+G18+I18+K18+M18+O18+Q18 -> 4435.07 | T18: 1331227
D19: 天然林 | E19: 1248.09 | F19: 175779 | G19: 1687.6 | H19: 242310 | J19: 0 | K19: 63.51 | L19: 7953 | N19: 0 | P19: 0 | Q19: 869.37 | R19: 126104 | S19: 3868.57 | T19: 552146
C20: その他 | E20: 49.95 | F20: 0 | G20: 82.94 | H20: 0 | J20: 0 | K20: 7.88 | L20: 0 | N20: 0 | P20: 0 | Q20: 60.97 | R20: 0 | S20: 201.74 | T20: 0
B21: 坂城町 | C21: 総 数 | E21: 1108.14 | F21: 264491 | G21: 593.2 | H21: 133602 | I21: 0 | J21: 0 | K21: 47.81 | L21: 10887 | M21: 0 | N21: 0 | O21: 0 | P21: 0 | Q21: 1154.39 | R21: 285067 | S21: =SUM(S22,S25) -> 2903.54 | T21: =SUM(T22,T25) -> 694047
C22: 立木地 | D22: 総 数 | E22: 1072 | F22: 264109 | G22: 585.23 | H22: 133391 | I22: 0 | J22: 0 | K22: 46.76 | L22: 10887 | M22: 0 | N22: 0 | O22: 0 | P22: 0 | Q22: 1118.38 | R22: 284474 | S22: =SUM(S23:S24) -> 2822.37 | T22: =SUM(T23:T24) -> 692861
D23: 人工林 | E23: 625.51 | F23: 194277 | G23: 262.18 | H23: 81818 | J23: 0 | K23: 15.98 | L23: 4907 | N23: 0 | P23: 0 | Q23: 738.38 | R23: 225816 | S23: =E23+G23+I23+K23+M23+O23+Q23 -> 1642.05 | T23: 506818
D24: 天然林 | E24: 446.49 | F24: 69832 | G24: 323.05 | H24: 51573 | J24: 0 | K24: 30.78 | L24: 5980 | N24: 0 | P24: 0 | Q24: 380 | R24: 58658 | S24: 1180.32 | T24: 186043
C25: その他 | E25: 36.14 | F25: 382 | G25: 7.97 | H25: 211 | J25: 0 | K25: 1.05 | L25: 0 | N25: 0 | P25: 0 | Q25: 36.01 | R25: 593 | S25: 81.17 | T25: 1186
B26: 小布施町 | C26: 総 数 | E26: 0 | F26: 0 | G26: 46.15 | H26: 4519 | I26: 80.59 | J26: 17338 | K26: 109.73 | L26: 19855 | M26: 0 | N26: 0 | O26: 0 | P26: 0 | Q26: 87.93 | R26: 18257 | S26: =SUM(S27,S30) -> 324.4 | T26: =SUM(T27,T30) -> 59969
C27: 立木地 | D27: 総 数 | E27: 0 | F27: 0 | G27: 33.04 | H27: 4519 | I27: 77.48 | J27: 17338 | K27: 109.2 | L27: 19855 | M27: 0 | N27: 0 | O27: 0 | P27: 0 | Q27: 87.45 | R27: 18257 | S27: =SUM(S28:S29) -> 307.17 | T27: =SUM(T28:T29) -> 59969
D28: 人工林 | F28: 0 | G28: 9.32 | H28: 1853 | I28: 27.72 | J28: 11801 | K28: 21.66 | L28: 9929 | N28: 0 | P28: 0 | Q28: 26.14 | R28: 11628 | S28: =E28+G28+I28+K28+M28+O28+Q28 -> 84.84 | T28: 35211
D29: 天然林 | F29: 0 | G29: 23.72 | H29: 2666 | I29: 49.76 | J29: 5537 | K29: 87.54 | L29: 9926 | N29: 0 | P29: 0 | Q29: 61.31 | R29: 6629 | S29: 222.33 | T29: 24758
C30: その他 | F30: 0 | G30: 13.11 | H30: 0 | I30: 3.11 | J30: 0 | K30: 0.53 | L30: 0 | N30: 0 | P30: 0 | Q30: 0.48 | R30: 0 | S30: 17.23 | T30: 0
B31: 高山村 | C31: 総 数 | E31: 5760.95 | F31: 1169838 | G31: 1802.25 | H31: 423750 | I31: 0 | J31: 0 | K31: 729.63 | L31: 107050 | M31: 0 | N31: 0 | O31: 0 | P31: 0 | Q31: 461.23 | R31: 96143 | S31: =SUM(S32,S35) -> 8754.06 | T31: =SUM(T32,T35) -> 1796781
C32: 立木地 | D32: 総 数 | E32: 5219.81 | F32: 1169838 | G32: 1748.7 | H32: 423750 | I32: 0 | J32: 0 | K32: 601.73 | L32: 107050 | M32: 0 | N32: 0 | O32: 0 | P32: 0 | Q32: 449.79 | R32: 96143 | S32: =SUM(S33:S34) -> 8020.03 | T32: =SUM(T33:T34) -> 1796781
D33: 人工林 | E33: 2574.82 | F33: 872582 | G33: 783.53 | H33: 315469 | J33: 0 | K33: 135.51 | L33: 56649 | N33: 0 | P33: 0 | Q33: 291.2 | R33: 78096 | S33: =E33+G33+I33+K33+M33+O33+Q33 -> 3785.06 | T33: 1322796
D34: 天然林 | E34: 2644.99 | F34: 297256 | G34: 965.17 | H34: 108281 | J34: 0 | K34: 466.22 | L34: 50401 | N34: 0 | P34: 0 | Q34: 158.59 | R34: 18047 | S34: 4234.97 | T34: 473985
C35: その他 | E35: 541.14 | F35: 0 | G35: 53.55 | H35: 0 | J35: 0 | K35: 127.9 | L35: 0 | N35: 0 | P35: 0 | Q35: 11.44 | R35: 0 | S35: 734.03 | T35: 0
B36: 信濃町 | C36: 総 数 | E36: 365.47 | F36: 79676 | G36: 379.38 | H36: 85064 | I36: 0 | J36: 0 | K36: 12.38 | L36: 1841 | M36: 0 | N36: 0 | O36: 0 | P36: 0 | Q36: 4904.92 | R36: 1168100 | S36: =SUM(S37,S40) -> 5662.15 | T36: =SUM(T37,T40) -> 1334681
C37: 立木地 | D37: 総 数 | E37: 359.53 | F37: 79676 | G37: 367.9 | H37: 85064 | I37: 0 | J37: 0 | K37: 12 | L37: 1841 | M37: 0 | N37: 0 | O37: 0 | P37: 0 | Q37: 4825.89 | R37: 1168100 | S37: =SUM(S38:S39) -> 5565.32 | T37: =SUM(T38:T39) -> 1334681
D38: 人工林 | E38: 141.33 | F38: 55430 | G38: 124 | H38: 53919 | J38: 0 | K38: 0.6 | L38: 336 | N38: 0 | P38: 0 | Q38: 2229.57 | R38: 856443 | S38: =E38+G38+I38+K38+M38+O38+Q38 -> 2495.5 | T38: 966128
D39: 天然林 | E39: 218.2 | F39: 24246 | G39: 243.9 | H39: 31145 | J39: 0 | K39: 11.4 | L39: 1505 | N39: 0 | P39: 0 | Q39: 2596.32 | R39: 311657 | S39: 3069.82 | T39: 368553
C40: その他 | E40: 5.94 | F40: 0 | G40: 11.48 | H40: 0 | J40: 0 | K40: 0.38 | L40: 0 | N40: 0 | P40: 0 | Q40: 79.03 | R40: 0 | S40: 96.83 | T40: 0
B41: 小川村 | C41: 総 数 | E41: 2833.35 | F41: 592007 | G41: 2708.56 | H41: 643270 | I41: 0 | J41: 0 | K41: 0 | L41: 0 | M41: 0 | N41: 0 | O41: 0 | P41: 0 | Q41: 643.36 | R41: 182845 | S41: =SUM(S42,S45) -> 6185.27 | T41: =SUM(T42,T45) -> 1418122
C42: 立木地 | D42: 総 数 | E42: 2775.71 | F42: 592007 | G42: 2644.61 | H42: 643270 | I42: 0 | J42: 0 | K42: 0 | L42: 0 | M42: 0 | N42: 0 | O42: 0 | P42: 0 | Q42: 631.28 | R42: 182845 | S42: =SUM(S43:S44) -> 6051.6 | T42: =SUM(T43:T44) -> 1418122
D43: 人工林 | E43: 857.45 | F43: 370078 | G43: 1052.14 | H43: 462516 | J43: 0 | L43: 0 | N43: 0 | P43: 0 | Q43: 328.55 | R43: 148876 | S43: =E43+G43+I43+K43+M43+O43+Q43 -> 2238.14 | T43: 981470
D44: 天然林 | E44: 1918.26 | F44: 221929 | G44: 1592.47 | H44: 180754 | J44: 0 | L44: 0 | N44: 0 | P44: 0 | Q44: 302.73 | R44: 33969 | S44: 3813.46 | T44: 436652
C45: その他 | E45: 57.64 | F45: 0 | G45: 63.95 | H45: 0 | J45: 0 | L45: 0 | N45: 0 | P45: 0 | Q45: 12.08 | R45: 0 | S45: 133.67 | T45: 0
B46: 飯綱町 | C46: 総 数 | E46: 1111.26 | F46: 275557 | G46: 646.22 | H46: 151559 | I46: 0 | J46: 0 | K46: 504.41 | L46: 125002 | M46: 0 | N46: 0 | O46: 0 | P46: 0 | Q46: 2709.68 | R46: 655153 | S46: =SUM(S47,S50) -> 4971.57 | T46: =SUM(T47,T50) -> 1207271
C47: 立木地 | D47: 総 数 | E47: 1103.72 | F47: 275557 | G47: 643.13 | H47: 151559 | I47: 0 | J47: 0 | K47: 502.55 | L47: 125002 | M47: 0 | N47: 0 | O47: 0 | P47: 0 | Q47: 2688.81 | R47: 655153 | S47: =SUM(S48:S49) -> 4938.21 | T47: =SUM(T48:T49) -> 1207271
D48: 人工林 | E48: 618.22 | F48: 218634 | G48: 286.44 | H48: 107987 | J48: 0 | K48: 301.73 | L48: 100823 | N48: 0 | P48: 0 | Q48: 1278.74 | R48: 490228 | S48: =E48+G48+I48+K48+M48+O48+Q48 -> 2485.13 | T48: 917672
D49: 天然林 | E49: 485.5 | F49: 56923 | G49: 356.69 | H49: 43572 | J49: 0 | K49: 200.82 | L49: 24179 | N49: 0 | P49: 0 | Q49: 1410.07 | R49: 164925 | S49: 2453.08 | T49: 289599
C50: その他 | E50: 7.54 | F50: 0 | G50: 3.09 | H50: 0 | J50: 0 | K50: 1.86 | L50: 0 | N50: 0 | P50: 0 | Q50: 20.87 | R50: 0 | S50: 33.36 | T50: 0
B51: 長野計 | C51: 総 数 | E51: 57681.27 | F51: 13139522 | G51: 18461.96 | H51: 4357716 | I51: 80.59 | J51: 17338 | K51: 2063.86 | L51: 409900 | M51: 0 | N51: 0 | O51: 0 | P51: 0 | Q51: 24168.36 | R51: 6505618 | S51: =SUM(S52,S55) -> 102456.04 | T51: =SUM(T52,T55) -> 24430094
C52: 立木地 | D52: 総 数 | E52: 55443.9 | F52: 13139140 | G52: 17744.36 | H52: 4355474 | I52: 77.48 | J52: 17338 | K52: 1907.1 | L52: 409900 | M52: 0 | N52: 0 | O52: 0 | P52: 0 | Q52: 23678.15 | R52: 6503095 | S52: =SUM(S53:S54) -> 98850.99 | T52: =SUM(T53:T54) -> 24424947
D53: 人工林 | E53: 25968.22 | F53: 9499963 | G53: 8312.15 | H53: 3176652 | I53: 27.72 | J53: 11801 | K53: 830.44 | L53: 286263 | M53: 0 | N53: 0 | O53: 0 | P53: 0 | Q53: 15657.54 | R53: 5497632 | S53: =E53+G53+I53+K53+M53+O53+Q53 -> 50796.07 | T53: 18472311
D54: 天然林 | E54: 29475.68 | F54: 3639177 | G54: 9432.21 | H54: 1178822 | I54: 49.76 | J54: 5537 | K54: 1076.66 | L54: 123637 | M54: 0 | N54: 0 | O54: 0 | P54: 0 | Q54: 8020.61 | R54: 1005463 | S54: 48054.92 | T54: 5952636
C55: その他 | E55: 2237.37 | F55: 382 | G55: 717.6 | H55: 2242 | I55: 3.11 | J55: 0 | K55: 156.76 | L55: 0 | M55: 0 | N55: 0 | O55: 0 | P55: 0 | Q55: 490.21 | R55: 2523 | S55: 3605.05 | T55: 5147
A56: 北信 | B56: 中野市 | C56: 総 数 | E56: 1815.25 | F56: 493473 | G56: 858.62 | H56: 220579 | I56: 0 | J56: 0 | K56: 137.12 | L56: 23762 | M56: 0 | N56: 0 | O56: 0 | P56: 0 | Q56: 4359.25 | R56: 1212224 | S56: =SUM(S57,S60) -> 7170.24 | T56: =SUM(T57,T60) -> 1950038
C57: 立木地 | D57: 総 数 | E57: 1800.3 | F57: 493473 | G57: 841.98 | H57: 220579 | I57: 0 | J57: 0 | K57: 122.25 | L57: 23762 | M57: 0 | N57: 0 | O57: 0 | P57: 0 | Q57: 4304.19 | R57: 1212224 | S57: =SUM(S58:S59) -> 7068.72 | T57: =SUM(T58:T59) -> 1950038
D58: 人工林 | E58: 961.78 | F58: 393183 | G58: 409.14 | H58: 172606 | J58: 0 | K58: 34.9 | L58: 13531 | N58: 0 | P58: 0 | Q58: 2352.15 | R58: 987196 | S58: =E58+G58+I58+K58+M58+O58+Q58 -> 3757.97 | T58: 1566516
D59: 天然林 | E59: 838.52 | F59: 100290 | G59: 432.84 | H59: 47973 | J59: 0 | K59: 87.35 | L59: 10231 | N59: 0 | P59: 0 | Q59: 1952.04 | R59: 225028 | S59: 3310.75 | T59: 383522
C60: その他 | E60: 14.95 | F60: 0 | G60: 16.64 | H60: 0 | J60: 0 | K60: 14.87 | L60: 0 | N60: 0 | P60: 0 | Q60: 55.06 | R60: 0 | S60: 101.52 | T60: 0
A61: 北信 | B61: 飯山市 | C61: 総 数 | E61: 7133.53 | F61: 1439954 | G61: 2641.82 | H61: 596890 | I61: 0 | J61: 0 | K61: 159.02 | L61: 29259 | M61: 0 | N61: 0 | O61: 0 | P61: 0 | Q61: 9477.78 | R61: 2042244 | S61: =SUM(S62,S65) -> 19412.15 | T61: =SUM(T62,T65) -> 4108347
C62: 立木地 | D62: 総 数 | E62: 7036.94 | F62: 1439954 | G62: 2581.37 | H62: 596890 | I62: 0 | J62: 0 | K62: 159.02 | L62: 29259 | M62: 0 | N62: 0 | O62: 0 | P62: 0 | Q62: 9355.14 | R62: 2042244 | S62: =SUM(S63:S64) -> 19132.47 | T62: =SUM(T63:T64) -> 4108347
D63: 人工林 | E63: 1952.98 | F63: 878525 | G63: 900.02 | H63: 410663 | J63: 0 | K63: 31.27 | L63: 13721 | N63: 0 | P63: 0 | Q63: 2926.93 | R63: 1319856 | S63: =E63+G63+I63+K63+M63+O63+Q63 -> 5811.2 | T63: 2622765
D64: 天然林 | E64: 5083.96 | F64: 561429 | G64: 1681.35 | H64: 186227 | J64: 0 | K64: 127.75 | L64: 15538 | N64: 0 | P64: 0 | Q64: 6428.21 | R64: 722388 | S64: 13321.27 | T64: 1485582
C65: その他 | E65: 96.59 | F65: 0 | G65: 60.45 | H65: 0 | J65: 0 | L65: 0 | N65: 0 | P65: 0 | Q65: 122.64 | R65: 0 | S65: 279.68 | T65: 0
B66: 山ノ内町 | C66: 総 数 | E66: 17551.63 | F66: 3063559 | G66: 5287.43 | H66: 914381 | I66: 0 | J66: 0 | K66: 1508.14 | L66: 218407 | M66: 0 | N66: 0 | O66: 0 | P66: 0 | Q66: 16327.95 | R66: 2959788 | S66: =SUM(S67,S70) -> 40675.15 | T66: =SUM(T67,T70) -> 7156135
C67: 立木地 | D67: 総 数 | E67: 17156.34 | F67: 3058965 | G67: 5100.36 | H67: 914139 | I67: 0 | J67: 0 | K67: 1407.88 | L67: 213943 | M67: 0 | N67: 0 | O67: 0 | P67: 0 | Q67: 16029.37 | R67: 2959658 | S67: =SUM(S68:S69) -> 39693.95 | T67: =SUM(T68:T69) -> 7146705
D68: 人工林 | E68: 3339.95 | F68: 1548094 | G68: 853.29 | H68: 389701 | J68: 0 | K68: 110.82 | L68: 41061 | N68: 0 | P68: 0 | Q68: 3432.36 | R68: 1610813 | S68: =E68+G68+I68+K68+M68+O68+Q68 -> 7736.42 | T68: 3589669
D69: 天然林 | E69: 13816.39 | F69: 1510871 | G69: 4247.07 | H69: 524438 | J69: 0 | K69: 1297.06 | L69: 172882 | N69: 0 | P69: 0 | Q69: 12597.01 | R69: 1348845 | S69: 31957.53 | T69: 3557036
C70: その他 | E70: 395.29 | F70: 4594 | G70: 187.07 | H70: 242 | J70: 0 | K70: 100.26 | L70: 4464 | N70: 0 | P70: 0 | Q70: 298.58 | R70: 130 | S70: 981.2 | T70: 9430
B71: 木島平村 | C71: 総 数 | E71: 2073.59 | F71: 591072 | G71: 939.66 | H71: 274988 | I71: 0 | J71: 0 | K71: 0 | L71: 0 | M71: 0 | N71: 0 | O71: 0 | P71: 0 | Q71: 2534.23 | R71: 728837 | S71: =SUM(S72,S75) -> 5547.48 | T71: =SUM(T72,T75) -> 1594897
C72: 立木地 | D72: 総 数 | E72: 2057.33 | F72: 591072 | G72: 934.73 | H72: 274988 | I72: 0 | J72: 0 | K72: 0 | L72: 0 | M72: 0 | N72: 0 | O72: 0 | P72: 0 | Q72: 2516.39 | R72: 728837 | S72: =SUM(S73:S74) -> 5508.45 | T72: =SUM(T73:T74) -> 1594897
D73: 人工林 | E73: 1193.17 | F73: 492301 | G73: 542.6 | H73: 228845 | J73: 0 | L73: 0 | N73: 0 | P73: 0 | Q73: 1459.86 | R73: 608530 | S73: =E73+G73+I73+K73+M73+O73+Q73 -> 3195.63 | T73: 1329676
D74: 天然林 | E74: 864.16 | F74: 98771 | G74: 392.13 | H74: 46143 | J74: 0 | L74: 0 | N74: 0 | P74: 0 | Q74: 1056.53 | R74: 120307 | S74: 2312.82 | T74: 265221
C75: その他 | E75: 16.26 | F75: 0 | G75: 4.93 | H75: 0 | J75: 0 | L75: 0 | N75: 0 | P75: 0 | Q75: 17.84 | R75: 0 | S75: 39.03 | T75: 0
B76: 野沢温泉村 | C76: 総 数 | E76: 2741.41 | F76: 710608 | G76: 897.08 | H76: 229184 | I76: 0 | J76: 0 | K76: 111.51 | L76: 16235 | M76: 0 | N76: 0 | O76: 0 | P76: 0 | Q76: 3033.1 | R76: 784430 | S76: =SUM(S77,S80) -> 6783.1 | T76: =SUM(T77,T80) -> 1740457
C77: 立木地 | D77: 総 数 | E77: 2720.42 | F77: 710608 | G77: 889.84 | H77: 229184 | I77: 0 | J77: 0 | K77: 109.53 | L77: 16235 | M77: 0 | N77: 0 | O77: 0 | P77: 0 | Q77: 3013.69 | R77: 784430 | S77: =SUM(S78:S79) -> 6733.48 | T77: =SUM(T78:T79) -> 1740457
D78: 人工林 | E78: 1152.2 | F78: 525333 | G78: 413.17 | H78: 174909 | J78: 0 | K78: 5.2 | L78: 2026 | N78: 0 | P78: 0 | Q78: 1284.75 | R78: 585410 | S78: =E78+G78+I78+K78+M78+O78+Q78 -> 2855.32 | T78: 1287678
D79: 天然林 | E79: 1568.22 | F79: 185275 | G79: 476.67 | H79: 54275 | J79: 0 | K79: 104.33 | L79: 14209 | N79: 0 | P79: 0 | Q79: 1728.94 | R79: 199020 | S79: 3878.16 | T79: 452779
C80: その他 | E80: 20.99 | F80: 0 | G80: 7.24 | H80: 0 | J80: 0 | K80: 1.98 | L80: 0 | N80: 0 | P80: 0 | Q80: 19.41 | R80: 0 | S80: 49.62 | T80: 0
B81: 栄村 | C81: 総 数 | E81: 10544.81 | F81: 2152796 | G81: 4035.84 | H81: 649374 | I81: 0 | J81: 0 | K81: 0 | L81: 0 | M81: 0 | N81: 0 | O81: 0 | P81: 0 | Q81: 11294.18 | R81: 2313166 | S81: =SUM(S82,S85) -> 25874.83 | T81: =SUM(T82,T85) -> 5115336
C82: 立木地 | D82: 総 数 | E82: 10283.95 | F82: 2152796 | G82: 3826.24 | H82: 649374 | I82: 0 | J82: 0 | K82: 0 | L82: 0 | M82: 0 | N82: 0 | O82: 0 | P82: 0 | Q82: 11021.71 | R82: 2313166 | S82: =SUM(S83:S84) -> 25131.9 | T82: =SUM(T83:T84) -> 5115336
D83: 人工林 | E83: 3480.52 | F83: 1441176 | G83: 872.19 | H83: 349297 | J83: 0 | L83: 0 | N83: 0 | P83: 0 | Q83: 3694.07 | R83: 1541122 | S83: =E83+G83+I83+K83+M83+O83+Q83 -> 8046.78 | T83: 3331595
D84: 天然林 | E84: 6803.43 | F84: 711620 | G84: 2954.05 | H84: 300077 | J84: 0 | L84: 0 | N84: 0 | P84: 0 | Q84: 7327.64 | R84: 772044 | S84: 17085.12 | T84: 1783741
C85: その他 | E85: 260.86 | F85: 0 | G85: 209.6 | H85: 0 | J85: 0 | L85: 0 | N85: 0 | P85: 0 | Q85: 272.47 | R85: 0 | S85: 742.93 | T85: 0
B86: 北信計 | C86: 総 数 | E86: 41860.22 | F86: 8451462 | G86: 14660.45 | H86: 2885396 | I86: 0 | J86: 0 | K86: 1915.79 | L86: 287663 | M86: 0 | N86: 0 | O86: 0 | P86: 0 | Q86: 47026.49 | R86: 10040689 | S86: =SUM(S87,S90) -> 105462.95 | T86: =SUM(T87,T90) -> 21665210
C87: 立木地 | D87: 総 数 | E87: 41055.28 | F87: 8446868 | G87: 14174.52 | H87: 2885154 | I87: 0 | J87: 0 | K87: 1798.68 | L87: 283199 | M87: 0 | N87: 0 | O87: 0 | P87: 0 | Q87: 46240.49 | R87: 10040559 | S87: =SUM(S88:S89) -> 103268.97 | T87: =SUM(T88:T89) -> 21655780
D88: 人工林 | E88: 12080.6 | F88: 5278612 | G88: 3990.41 | H88: 1726021 | I88: 0 | J88: 0 | K88: 182.19 | L88: 70339 | M88: 0 | N88: 0 | O88: 0 | P88: 0 | Q88: 15150.12 | R88: 6652927 | S88: =E88+G88+I88+K88+M88+O88+Q88 -> 31403.32 | T88: 13727899
D89: 天然林 | E89: 28974.68 | F89: 3168256 | G89: 10184.11 | H89: 1159133 | I89: 0 | J89: 0 | K89: 1616.49 | L89: 212860 | M89: 0 | N89: 0 | O89: 0 | P89: 0 | Q89: 31090.37 | R89: 3387632 | S89: 71865.65 | T89: 7927881
C90: その他 | E90: 804.94 | F90: 4594 | G90: 485.93 | H90: 242 | I90: 0 | J90: 0 | K90: 117.11 | L90: 4464 | M90: 0 | N90: 0 | O90: 0 | P90: 0 | Q90: 786 | R90: 130 | S90: 2193.98 | T90: 9430
A91: 計画区計 | C91: 総 数 | E91: 99541.49 | F91: 21590984 | G91: 33122.41 | H91: 7243112 | I91: 80.59 | J91: 17338 | K91: 3979.65 | L91: 697563 | M91: 0 | N91: 0 | O91: 0 | P91: 0 | Q91: 71194.85 | R91: 16546307 | S91: =SUM(S92,S95) -> 207918.99 | T91: =SUM(T92,T95) -> 46095304
C92: 立木地 | D92: 総 数 | E92: 96499.18 | F92: 21586008 | G92: 31918.88 | H92: 7240628 | I92: 77.48 | J92: 17338 | K92: 3705.78 | L92: 693099 | M92: 0 | N92: 0 | O92: 0 | P92: 0 | Q92: 69918.64 | R92: 16543654 | S92: =SUM(S93:S94) -> 202119.96 | T92: =SUM(T93:T94) -> 46080727
D93: 人工林 | E93: 38048.82 | F93: 14778575 | G93: 12302.56 | H93: 4902673 | I93: 27.72 | J93: 11801 | K93: 1012.63 | L93: 356602 | M93: 0 | N93: 0 | O93: 0 | P93: 0 | Q93: 30807.66 | R93: 12150559 | S93: =E93+G93+I93+K93+M93+O93+Q93 -> 82199.39 | T93: 32200210
D94: 天然林 | E94: 58450.36 | F94: 6807433 | G94: 19616.32 | H94: 2337955 | I94: 49.76 | J94: 5537 | K94: 2693.15 | L94: 336497 | M94: 0 | N94: 0 | O94: 0 | P94: 0 | Q94: 39110.98 | R94: 4393095 | S94: 119920.57 | T94: 13880517
C95: その他 | E95: 3042.31 | F95: 4976 | G95: 1203.53 | H95: 2484 | I95: 3.11 | J95: 0 | K95: 273.87 | L95: 4464 | M95: 0 | N95: 0 | O95: 0 | P95: 0 | Q95: 1276.21 | R95: 2653 | S95: 5799.03 | T95: 14577

Sheet 第10-1表 県計
A1: 第10-1表 市町村別・公益的機能別施業森林等区分別ゾーニング別・資源表
R2: （単位 面積：ha 蓄積：m3）
C3: 区 分 | E3: 公益的機能別施業森林等区分別
E4: 水かん | G4: 山災/土壌 | I4: 快適環境 | K4: 保健 | M4: 文化 | O4: 独自 | Q4: 木材 | S4: 総数
E5: 面積 | F5: 蓄積 | G5: 面積 | H5: 蓄積 | I5: 面積 | J5: 蓄積 | K5: 面積 | L5: 蓄積 | M5: 面積 | N5: 蓄積 | O5: 面積 | P5: 蓄積 | Q5: 面積 | R5: 蓄積 | S5: 面積 | T5: 蓄積
A6: 県計 | C6: 総 数 | E6: 416898.48 | F6: 84942665 | G6: 181318.32 | H6: 35417870 | I6: 11111.43 | J6: 2239718 | K6: 19548.12 | L6: 3393489 | M6: 858.2 | N6: 171331 | O6: 45.95 | P6: 8176 | Q6: 356893.71 | R6: 76521405 | S6: 986674.21 | T6: 202694654
C7: 立木地 | D7: 総 数 | E7: 405842.99 | F7: 84863332 | G7: 174857.23 | H7: 35397343 | I7: 10731.03 | J7: 2239718 | K7: 17948.16 | L7: 3364554 | M7: 855.06 | N7: 171291 | O7: 45.72 | P7: 8176 | Q7: 350024.86 | R7: 76450843 | S7: 960305.05 | T7: 202495257
D8: 人工林 | E8: 202166.74 | F8: 58976724 | G8: 84074.16 | H8: 23360596 | I8: 5300.71 | J8: 1469912 | K8: 6872.19 | L8: 1919343 | M8: 336.41 | N8: 101067 | O8: 10.05 | P8: 2931 | Q8: 190568 | R8: 55546131 | S8: 489328.26 | T8: 141376704
D9: 天然林 | E9: 203676.25 | F9: 25886608 | G9: 90783.07 | H9: 12036747 | I9: 5430.32 | J9: 769806 | K9: 11075.97 | L9: 1445211 | M9: 518.65 | N9: 70224 | O9: 35.67 | P9: 5245 | Q9: 159456.86 | R9: 20904712 | S9: 470976.79 | T9: 61118553
C10: その他 | E10: 11055.49 | F10: 79333 | G10: 6461.09 | H10: 20527 | I10: 380.4 | J10: 0 | K10: 1599.96 | L10: 28935 | M10: 3.14 | N10: 40 | O10: 0.23 | P10: 0 | Q10: 6868.85 | R10: 70562 | S10: 26369.16 | T10: 199397
A12: ※表中の「その他」とは、立木地以外の森林（無立木地・竹林・更新困難地）のことを示す。
A13: ※表中の「区分」とは、市町村森林整備計画において森林の機能等の別にゾーニングした区分を示す。
A14: ※表中の区分「水かん」とは、「水源の涵養の機能の維持増進を図るための森林施業を推進すべき森林」のことを示す。
A15: ※表中の区分「山災/土壌」とは、「土地に関する災害の防止及び土壌の保全の機能の維持増進を図るための森林施業を推進すべき森林」のことを示す。
A16: ※表中の区分「快適環境」とは、「快適な環境の形成の機能の維持増進を図るための森林施業を推進すべき森林」のことを示す。
A17: ※表中の区分「保健」とは、「保健文化機能の維持増進を図るための森林施業を推進すべき森林」の内「保健・レクリエーション機能の維持増進を図る森林」のことを示す。
A18: ※表中の区分「文化」とは、「保健文化機能の維持増進を図るための森林施業を推進すべき森林」の内「文化機能の維持増進を図る森林」のことを示す。
A19: ※表中の区分「木材」とは、「木材の生産機能の維持増進を図るための森林施業を推進すべき森林」のことを示す。
A20: ※表中の区分「独自」とは、市町村が独自にゾーニングした森林のことを示す。
A21: ※表中の区分「総数」の面積及び蓄積は、ゾーニングが重複している箇所があるため他表と一致しない。
